Workbook

Sheet FS_FOR_599_Outline
A1: Course Schedule
A2: Week | B2: Lecture | C2: Exercise
A4: Week 1 | B4: - Introduction | C4: - From quantum yield to NPP using radiation
A5: (01/10)
B12: Reference: Coops, Waring, Moncrieff. 2000 Estimating mean monthly incident solar radiation on horizontal and inclined slopes from mean monthly temperature extremes. Journal of Biometeorology 44:204-211.

Sheet Ex3 Cal. Rad., vpd, frost days
A1: Predicting Climatic Variables from mean monthly temperature extremes
A3: EXERCISE 3 | S3: EUGENE, OR
B4: If mean monthly (av. daily) temperature extremes are | I4: Eugene Oregon. 44.12 oN Latitude, 123.22 oW. Long., Elevation 150 m | Q4: VARIABLES | R4: Jan | S4: Feb | T4: Mar | U4: Apr | V4: May | W4: Jun | X4: Jul | Y4: Aug | Z4: Sep | AA4: Oct | AB4: Nov | AC4: Dec | AD4: Annual
B5: available, it is possible to predict three climatic | Q5: Avg. Temperature | R5: 4.9 | S5: 6.8 | T5: 8.6 | U5: 10.3 | V5: 13.2 | W5: 16.7 | X5: 19.6 | Y5: 19.8 | Z5: 17.1 | AA5: 12.3 | AB5: 7.8 | AC5: 5.1 | AD5: 11.8
B6: variables used in the 3-PG model. | I6: Temp. oC | J6: Temp., oC | K6: Rad. Predicted | L6: Rad. Observed | M6: Predicted | N6: Observed | O6: Predicted | P6: Observed | Q6: Avg. Max Temperature | R6: 8 | S6: 10.8 | T6: 13.3 | U6: 15.8 | V6: 19.5 | W6: 23.4 | X6: 27.6 | Y6: 27.7 | Z6: 24.6 | AA6: 18.1 | AB6: 11.3 | AC6: 7.9 | AD6: 17.3
H7: Month | I7: Mean Max | J7: Mean Min | K7: MJ/m2/day | L7: MJ/m2/day | M7: VPD, mb (62% max VPD) | N7: VPD, 24hr, mb | O7: day <2oC | P7: days <0oC | Q7: Avg. Min Temperature | R7: 1.8 | S7: 2.8 | T7: 3.8 | U7: 4.8 | V7: 6.9 | W7: 9.8 | X7: 11.6 | Y7: 11.8 | Z7: 9.6 | AA7: 6.4 | AB7: 4.3 | AC7: 2.2 | AD7: 6.3
A8: SOLAR RAD | B8: 1) copy Mean Max and Min temperatures | H8: Jan | I8: 8 | J8: 1.8 | K8: 10 | L8: 4.68 | M8: 5 | N8: 4.625587655 | O8: 5 | P8: 14 | Q8: Avg. Relative Humidity | R8: 66.5 | S8: 86 | T8: 81.5 | U8: 77 | V8: 74.5 | W8: 72.5 | X8: 68.5 | Y8: 63.5 | Z8: 64 | AA8: 68 | AB8: 78 | AC8: 85.5 | AD8: 87.5
B9: from the adjacent table and insert them | H9: Feb | I9: 10.8 | J9: 2.8 | K9: 10 | L9: 7.2 | M9: 5 | N9: 6.424581601 | O9: 5 | P9: 10 | Q9: Mean Sat. VP | R9: =6.1078*EXP((17.269*R7)/(237.3+R7)) -> 6.955770909 | S9: =6.1078*EXP((17.269*S7)/(237.3+S7)) -> 7.470443722 | T9: 8.018448843 | U9: 8.601621927 | V9: 9.94939117 | W9: 12.11514304 | X9: 13.65887459 | Y9: 13.84062895 | Z9: 11.95347813 | AA9: 9.612666158 | AB9: 8.305521492 | AC9: 7.15775431 | AD9: 9.5465393
B10: under the same columns labels on the Radiation | H10: Mar | I10: 13.3 | J10: 3.8 | K10: 10 | L10: 11.16 | M10: 5 | N10: 6.535035807 | O10: 5 | P10: 7 | Q10: Mean VPD at mean T | R10: =R9*R8/100 -> 4.625587655 | S10: =S9*S8/100 -> 6.424581601 | T10: 6.535035807 | U10: 6.623248884 | V10: 7.412296421 | W10: 8.783478706 | X10: 9.356329092 | Y10: 8.78879938 | Z10: 7.650226003 | AA10: 6.536612987 | AB10: 6.478306764 | AC10: 6.119879935 | AD10: 8.353221887
B11: Calculation page. After inserting Elevation (150 m) | H11: Apr | I11: 15.8 | J11: 4.8 | K11: 10 | L11: 15.84 | M11: 5 | N11: 6.623248884 | O11: 5 | P11: 2
B12: and Latitude (+44.12), Insert Months, 1 through 12 | H12: May | I12: 19.5 | J12: 6.9 | K12: 10 | L12: 19.8 | M12: 5 | N12: 7.412296421 | O12: 5 | P12: 0
B13: and copy values into the Rad. Predicted column | H13: Jun | I13: 23.4 | J13: 9.8 | K13: 10 | L13: 22.32 | M13: 5 | N13: 8.783478706 | O13: 5 | P13: 0
B14: in the adjacent table. | H14: Jul | I14: 27.6 | J14: 11.6 | K14: 10 | L14: 24.12 | M14: 5 | N14: 9.356329092 | O14: 5 | P14: 0
B15: Fit linear relation to trend line and determine slope (forced through zero) | H15: Aug | I15: 27.7 | J15: 11.8 | K15: 10 | L15: 20.88 | M15: 5 | N15: 8.78879938 | O15: 5 | P15: 0
B16: and derive r2. | H16: Sep | I16: 24.6 | J16: 9.6 | K16: 10 | L16: 15.84 | M16: 5 | N16: 7.650226003 | O16: 5 | P16: 0.5
H17: Oct | I17: 18.1 | J17: 6.4 | K17: 10 | L17: 9.72 | M17: 5 | N17: 6.536612987 | O17: 5 | P17: 2
A18: VPD | B18: 2) Go to 3-PG function tools and substitute | H18: Nov | I18: 11.3 | J18: 4.3 | K18: 10 | L18: 5.04 | M18: 5 | N18: 6.478306764 | O18: 5 | P18: 7
B19: mean max and min monthly temperatures into | H19: Dec | I19: 7.9 | J19: 2.2 | K19: 10 | L19: 3.6 | M19: 5 | N19: 6.119879935 | O19: 5 | P19: 11
B20: tables to solve for mean daily vapor pressure deficits
B21: (vpd) each month; insert values in adjacent table
B22: Fit linear relation to trend line and determine slope (not forced through zero)
B23: and r2 .
A24: FROST DAYS
B25: 3) Go to 3-PG function tools and substitute
B26: mean min monthly tempertures into
B27: table to solve for No. of frost days (<-2o C each month;
B28: insert values in adjacent table.
B29: Fit linear relation to trend line and determine slope (forced through zero)
B30: and r2.
A53: 82. Coops, N.C., R.H. Waring, and J. Moncrieff. 2000. Estimating mean monthly incident solar radiation on horizontal and inclined slopes from mean monthly temperature extremes. Journal of Biometeorology 44:204-211.pdf.
A54: Thornton, P.E., S.W. Running, and M.A. White. 1997. Predicting surface daily
A55: meteorlogical variables over large regions of complex terrain. J. Hydrology 19:214-251.

Sheet RADIATION CALCULATIONS
C1: INSTRUCTIONS
C2: Feb. 2, 2001
C3: This spreadsheet contains a program for estimating short-wave incoming radiation from mean monthly maximum and
C4: minimum temperature data (in degrees C). Convert ( degrees F-32)*5/9
C5: RADIATION CALCULATIONS | AK5: 13.52222222 | AL5: -3.295509259
C6: The radiation calculations require the average of every day max and min temperatures each month be inserted in columns C and D | AK6: 14.9 | AL6: -0.01904693487
C7: The other essential input parameters are elevation, Lat (- in southern hemisphere), slope in degrees, and aspect (0=N, 180=S), and Month (1=January) | AK7: 18.28888889 | AL7: 0.0736775687
C8: Longitude and Meridian are not essential | AK8: 21.22222222 | AL8: 5.257268519
B9: 1954 n | AK9: 28.77777778 | AL9: 10.75471924
B10: 110 long | C10: The output parameters are self-explanatory. Below are given information on sunrise, sunset, and daylenght for flat surfaces. | AK10: 27.94444444 | AL10: 14.06732253
B11: 39.1 Lat | AK11: 30.55555556 | AL11: 17.29058393
C12: REFERENCE : Coops, N.C., R.H. Waring, and J.B. Moncrieff. 2000. Estimating mean monthly incident solar radiation on horizontal and inclined slopes from mean monthly temperature extremes. International Journal of Biometeorology 44:204-211. | AK12: 29.27777778 | AL12: 16.38124253
AK13: 27.5 | AL13: 11.23215278
C14: Note: I have substituted a equation that differs from that in the paper to adjust for changes in clear sky transmittance based on changes in partial pressure with increases in elevation above sea level. [Clear Sky Transmittance = (Elev.(m)*0.0001+1.0143) | AK14: 24.05555556 | AL14: 5.165120968
AK15: 13.55555556 | AL15: -4.927018519
AK16: 12.4 | AL16: -5.192715054
B17: YEAR | C17: MONTH | D17: TMAX24H | E17: TMIN24H | F17: Diff Temp. | G17: Max. Clear Sky Transmittance | H17: B | I17: Clear Sky Tranmittance | J17: Solar Declination | K17: Latitude | L17: Aspect | M17: Slope | N17: Zenith Angle Correction | O17: AM | P17: Day length (for 44) (HR) | R17: SOLCON | S17: I (Wm-2) | T17: Integrated I (MJ day) | U17: For the Day in MJ | V17: Df | W17: EFT | X17: HRAD | Y17: GLOBF | Z17: DIFL (Wm2) | AA17: DIFL (Day) in Mj | AB17: Integrated Difuse | AC17: Total Integrated Daily Radiation (MJ m2 ) day | AG17: Measured Rad
A18: 13.52222222 | B18: -3.295509259 | C18: [ENTER DATA IN COL. C,D, F, & Below] 1 | D18: 10 | E18: 5 | F18: =D18-E18 -> 5 | G18: =($D$31*0.0001+1.0142)*0.65 -> 0.66898 | H18: =0.031+0.201 * EXP(-0.185 * F18) -> 0.1107028152 | I18: =G18*(1-EXP(-(H18*F18^1.5))) -> 0.4749410206 | J18: -20.2 | K18: =$D$35 -> 44.12 | L18: =$D$37 -> 0 | M18: =$D$36 -> 0 | N18: =(((SIN(K18*PI()/180)*COS(0*PI()/180))*(-1*COS(L18*PI()/180)*SIN(M18*PI()/180))-SIN(0*PI()/180)*(SIN(L18*PI()/180)*SIN(M18*PI()/180))+((COS(K18*PI()/180)*COS(0*PI()/180))*COS(M18*PI()/180)))*COS(J18*PI()/180))+(((COS(K18*PI()/180)*(COS(L18*PI()/180)*SIN(M18*PI()/180))+SIN(K18*PI()/180)*COS(M18*PI()/180)))*SIN(J18*PI()/180)) -> 0.433344523 | O18: =IF($N18>0,1/($N18+0.0000001),0) -> 2.307632187 | P18: 9.225054053 | Q18: =P18*60*60 -> 33210.19459 | R18: 1.36 | S18: =IF($O18>0,(R18*I18^O18)*1000*N18,0) -> 105.7244758 | T18: =(((Q18*2)/PI())*S18)/1000000 -> 2.235255045 | U18: =(S18*Q18)/1000000 -> 3.511130415 | V18: =((((N18*R18*Q18)^2)*G18^O18)^0.5) * (1 - ((((N18*R18*Q18)^2)*G18^O18)^0.5)/(N18*R18*Q18)) -> 4568.06187 | W18: =S18*N18 -> 45.81512254 | X18: =W18*I18^O18 -> 8.218871166 | Y18: =SQRT(X18*W18) -> 19.40485995 | Z18: =(1-(Y18/W18)) * Y18 -> 11.18598878 | AA18: =(Z18*Q18)/1000000 -> 0.3714888641 | AB18: =(((Q18*2)/PI())*Z18)/1000000 -> 0.2364971561 | AC18: =AB18+T18 -> 2.471752201 | AD18: =AC18*30 -> 74.15256604 | AE18: =AC18*0.8 -> 1.977401761 | AF18: 4.389323882
A19: 14.9 | B19: -0.01904693487 | C19: 2 | D19: 10 | E19: 5 | F19: 5 | G19: 0.66898 | H19: 0.1107028152 | I19: =G19*(1-EXP(-(H19*F19^1.5))) -> 0.4749410206 | J19: -12.65 | K19: 44.12 | L19: 0 | M19: 0 | N19: 0.5480012772 | O19: 1.824812932 | P19: 10.33096698 | Q19: 37191.48111 | R19: 1.36 | S19: 191.5351065 | T19: 4.534944584 | U19: 7.123474295 | V19: 5897.528287 | W19: 104.961483 | X19: 26.97477722 | Y19: 53.21008006 | Z19: 26.23530284 | AA19: 0.9757297701 | AB19: 0.6211688641 | AC19: 5.156113449 | AD19: 154.6834035 | AE19: 4.124890759 | AF19: 7.26
A20: 18.28888889 | B20: 0.0736775687 | C20: 3 | D20: 10 | E20: 5 | F20: 5 | G20: 0.66898 | H20: 0.1107028152 | I20: 0.4749410206 | J20: -1.95 | K20: 44.12 | L20: 0 | M20: 0 | N20: 0.6937790129 | O20: 1.441380955 | P20: 11.74877865 | Q20: 42295.60316 | R20: 1.36 | S20: 322.6076499 | T20: 8.686603669 | U20: 13.64488514 | V20: 7513.019524 | W20: 223.8184169 | X20: 76.5262469 | Y20: 130.8739219 | Z20: 54.347675 | AA20: 2.298667694 | AB20: 1.463377304 | AC20: 10.14998097 | AD20: 304.4994292 | AE20: 8.119984779 | AF20: 11.08
A21: 21.22222222 | B21: 5.257268519 | C21: 4 | D21: 10 | E21: 5 | F21: 5 | G21: 0.66898 | H21: 0.1107028152 | I21: 0.4749410206 | J21: 9.45 | K21: 44.12 | L21: 0 | M21: 0 | N21: 0.8224420024 | O21: 1.21589106 | P21: 13.23327233 | Q21: 47639.78038 | R21: 1.36 | S21: 452.3486195 | T21: 13.71902169 | U21: 21.54978889 | V21: 9048.51274 | W21: 372.0305044 | X21: 150.4553482 | Y21: 236.5882057 | Z21: 86.1328575 | AA21: 4.103350415 | AB21: 2.612274007 | AC21: 16.3312957 | AD21: 489.938871 | AE21: 13.06503656 | AF21: 14.82
A22: 28.77777778 | B22: 10.75471924 | C22: 5 | D22: 10 | E22: 5 | F22: 5 | G22: 0.66898 | H22: 0.1107028152 | I22: 0.4749410206 | J22: 18.35 | K22: 44.12 | L22: 0 | M22: 0 | N22: 0.9005465344 | O22: 1.110436663 | P22: 14.49085908 | Q22: 52167.09269 | R22: 1.36 | S22: 535.7644759 | T22: 17.79306114 | U22: 27.94927507 | V22: 10224.28901 | W22: 482.4808421 | X22: 211.0614512 | Y22: 319.1129999 | Z22: 108.0515487 | AA22: 5.636735156 | AB22: 3.588457052 | AC22: 21.38151819 | AD22: 641.4455456 | AE22: 17.10521455 | AF22: 20.1
A23: 27.94444444 | B23: 14.06732253 | C23: 6 | D23: 10 | E23: 5 | F23: 5 | G23: 0.66898 | H23: 0.1107028152 | I23: 0.4749410206 | J23: 22.55 | K23: 44.12 | L23: 0 | M23: 0 | N23: 0.929969108 | O23: 1.07530442 | P23: 15.15200316 | Q23: 54547.21137 | R23: 1.36 | S23: 567.9324066 | T23: 19.72192607 | U23: 30.97912903 | V23: 10803.2186 | W23: 528.1595935 | X23: 237.1670724 | Y23: 353.9238118 | Z23: 116.7567394 | AA23: 6.368754543 | AB23: 4.054475068 | AC23: 23.77640114 | AD23: 713.2920341 | AE23: 19.02112091 | AF23: 21
A24: 30.55555556 | B24: 17.29058393 | C24: 7 | D24: 10 | E24: 5 | F24: 5 | G24: 0.66898 | H24: 0.1107028152 | I24: 0.4749410206 | J24: 20.75 | K24: 44.12 | L24: 0 | M24: 0 | N24: 0.917962446 | O24: 1.089369064 | P24: 14.86145781 | Q24: 53501.24813 | R24: 1.36 | S24: 554.759943 | T24: 18.89509726 | U24: 29.68034937 | V24: 10551.76568 | W24: 509.2487943 | X24: 226.2930841 | Y24: 339.4694099 | Z24: 113.1763258 | AA24: 6.055074687 | AB24: 3.854780269 | AC24: 22.74987753 | AD24: 682.4963258 | AE24: 18.19990202 | AF24: 22.92
A25: 29.27777778 | B25: 16.38124253 | C25: 8 | D25: 10 | E25: 5 | F25: 5 | G25: 0.66898 | H25: 0.1107028152 | I25: 0.4749410206 | J25: 13.45 | K25: 44.12 | L25: 0 | M25: 0 | N25: 0.8601194734 | O25: 1.162629047 | P25: 13.78040315 | Q25: 49609.45134 | R25: 1.36 | S25: 492.2090441 | T25: 15.54512205 | U25: 24.41822062 | V25: 9573.119597 | W25: 423.3585838 | X25: 178.139517 | Y25: 274.6213641 | Z25: 96.48184713 | AA25: 4.7864115 | AB25: 3.0471242 | AC25: 18.59224625 | AD25: 557.7673876 | AE25: 14.873797 | AF25: 19.52
A26: 27.5 | B26: 11.23215278 | C26: 9 | D26: 10 | E26: 5 | F26: 5 | G26: 0.66898 | H26: 0.1107028152 | I26: 0.4749410206 | J26: 2.9 | K26: 44.12 | L26: 0 | M26: 0 | N26: 0.7521849371 | O26: 1.329460107 | P26: 12.37386807 | Q26: 44545.92505 | R26: 1.36 | S26: 380.1621687 | T26: 10.78094924 | U26: 16.93467547 | V26: 8180.046773 | W26: 285.9522569 | X26: 106.2671136 | Y26: 174.3195943 | Z26: 68.05248074 | AA26: 3.031460706 | AB26: 1.929887825 | AC26: 12.71083707 | AD26: 381.3251121 | AE26: 10.16866966 | AF26: 13.56
A27: 24.05555556 | B27: 5.165120968 | C27: 10 | D27: 10 | E27: 5 | F27: 5 | G27: 0.66898 | H27: 0.1107028152 | I27: 0.4749410206 | J27: -8.45 | K27: 44.12 | L27: 0 | M27: 0 | N27: 0.607791711 | O27: 1.64530022 | P27: 10.90023853 | Q27: 39240.85871 | R27: 1.36 | S27: 242.8112908 | T27: 6.06579185 | U27: 9.528123557 | V27: 6561.694388 | W27: 147.5786899 | X27: 43.35097276 | Y27: 79.98549722 | Z27: 36.63452446 | AA27: 1.437570198 | AB27: 0.9151856124 | AC27: 6.980977463 | AD27: 209.4293239 | AE27: 5.58478197 | AF27: 8.7
A28: 13.55555556 | B28: -4.927018519 | C28: 11 | D28: 10 | E28: 5 | F28: 5 | G28: 0.66898 | H28: 0.1107028152 | I28: 0.4749410206 | J28: -17.85 | K28: 44.12 | L28: 0 | M28: 0 | N28: 0.4699338087 | O28: 2.127958808 | P28: 9.584237956 | Q28: 34503.25664 | R28: 1.36 | S28: 131.0624134 | T28: 2.878845594 | U28: 4.522080084 | V28: 5003.413464 | W28: 61.59065909 | X28: 12.63040897 | Y28: 27.89113144 | Z28: 15.26072247 | AA28: 0.5265446239 | AB28: 0.3352087186 | AC28: 3.214054312 | AD28: 96.42162937 | AE28: 2.57124345 | AF28: 5
A29: 12.4 | B29: -5.192715054 | C29: 12 | D29: 10 | E29: 5 | F29: 5 | G29: 0.66898 | H29: 0.1107028152 | I29: 0.4749410206 | J29: -22.35 | K29: 44.12 | L29: 0 | M29: 0 | N29: 0.3992291858 | O29: 2.504826263 | P29: 8.880875948 | Q29: 31971.15341 | R29: 1.36 | S29: 84.10073133 | T29: 1.711741578 | U29: 2.688797384 | V29: 4150.394009 | W29: 33.57546649 | X29: 5.200686037 | Y29: 13.21421431 | Z29: 8.013528271 | AA29: 0.2562017417 | AB29: 0.1631030945 | AC29: 1.874844673 | AD29: 56.24534018 | AE29: 1.499875738 | AF29: 4.18
A30: Month | B30: List output D46 | C30: Input parameters
A31: Jan | B31: 10 | C31: Elevation | D31: 150 | E31: meters | J31: Solar Declination | K31: Latitude | L31: Aspect | M31: Slope | N31: 8 | O31: 1.8 | AH31: (From Campbell and Norman. 1998. An Introduction to Environmental Biophysics. 2nd Edition. Springer Verlag. (Eq. 3.7, p. 41).
A32: Feb | B32: 10 | C32: Mean Solar Constant | D32: 1360 | E32: Wm-2 | N32: 10.8 | O32: 2.8 | AD32: Pa (kPa) =101.3exp(-Elev.(m)/8200)
A33: Mar | B33: 10 | C33: Standard Meridian | D33: 120 | E33: degrees | N33: 13.3 | O33: 3.8 | AF33: Pa, kPa | AJ33: Fractional | AK33: PREDICTED
A34: Apr | B34: 10 | C34: Longitude | D34: 110 | E34: degrees | N34: 15.8 | O34: 4.8 | AB34: Elevation,m | AD34: Ratio (-Elev/8200) | AE34: EXP | AF34: EXP*101.3 | AH34: Ratio to SL | AI34: 1-Ratio | AJ34: Increase in Transmissivity above Sea Level
A35: May | B35: 10 | C35: Latitude | D35: 44.12 | E35: degrees | N35: 19.5 | O35: 6.9 | AB35: 0 | AD35: =(-AB35/8200) -> 0 | AE35: =EXP(AD35) -> 1 | AF35: =AE35*101.3 -> 101.3 | AG35: =101.3*EXP((-AB35/8200)) -> 101.3 | AH35: =AG35/101.3 -> 1 | AI35: =1-AH35 -> 0 | AJ35: =1+AI35 -> 1 | AK35: =0.0001*AB35+1.0142 -> 1.0142
A36: Jun | B36: 10 | C36: Slope | D36: 0 | E36: degrees | N36: 23.4 | O36: 9.8 | AB36: 500 | AD36: -0.06097560976 | AE36: 0.940846187 | AF36: 95.30771874 | AG36: 95.30771874 | AH36: 0.940846187 | AI36: 0.05915381304 | AJ36: 1.059153813 | AK36: 1.0642
A37: Jul | B37: 10 | C37: Aspect | D37: 0 | E37: degrees from N | G37: =IF($D$37>180,-1*($D$37-180),180-$D$37) -> 180 | N37: 27.6 | O37: 11.6 | AB37: 1000 | AD37: -0.1219512195 | AE37: 0.8851915475 | AF37: 89.66990376 | AG37: 89.66990376 | AH37: 0.8851915475 | AI37: 0.1148084525 | AJ37: 1.114808452 | AK37: 1.1142
A38: Aug | B38: 10 | C38: Month | D38: 1 | N38: 27.7 | O38: 11.8 | AB38: 1500 | AD38: -0.1829268293 | AE38: 0.8328290922 | AF38: 84.36558704 | AG38: 84.36558704 | AH38: 0.8328290922 | AI38: 0.1671709078 | AJ38: 1.167170908 | AK38: 1.1642
A39: Sep | B39: 10 | N39: 24.6 | O39: 9.6 | P39: 21 Feb. 2001 Note: | AB39: 2000 | AD39: -0.243902439 | AE39: 0.7835640758 | AF39: 79.37504088 | AG39: 79.37504088 | AH39: 0.7835640758 | AI39: 0.2164359242 | AJ39: 1.216435924 | AK39: 1.2142
A40: Oct | B40: 10 | C40: Derived parameters | N40: 18.1 | O40: 6.4 | P40: Formula for Clear Sky Transmissivity | AB40: 2500 | AD40: -0.3048780488 | AE40: 0.737213273 | AF40: 74.67970455 | AG40: 74.67970455 | AH40: 0.737213273 | AI40: 0.262786727 | AJ40: 1.262786727 | AK40: 1.2642
A41: Nov | B41: 10 | C41: Transmissivity | D41: =INDEX($I18:$I29,Month) -> 0.4749410206 | N41: 11.3 | O41: 4.3 | P41: (Elev *0.0001+1.0143)*0.65 | T41: (formula modified from original, see calculations to right, RHW) | AB41: 3000 | AD41: -0.3658536585 | AE41: 0.6936042969 | AF41: 70.26211527 | AG41: 70.26211527 | AH41: 0.6936042969 | AI41: 0.3063957031 | AJ41: 1.306395703 | AK41: 1.3142
A42: Dec | B42: 10 | C42: Integrated Solar (Month) | D42: =BP83 -> 51.29363316 | E42: MJ m-2 | N42: 7.9 | O42: 2.2 | P42: New Formula for B | AB42: 3500 | AD42: -0.4268292683 | AE42: 0.652574958 | AF42: 66.10584324 | AG42: 66.10584324 | AH42: 0.652574958 | AI42: 0.347425042 | AJ42: 1.347425042 | AK42: 1.3642 | AL42: Hartman, D.L. 1994. Global Physical Climatology. Academic Press. 411 p.
C43: Integrated Solar (15th of Month) | D43: =AX83 -> 1.571851484 | E43: MJ m-2 | P43: 0.031+0.201EXP(-0.185 Temp.Diff) | AB43: 4000 | AD43: -0.487804878 | AE43: 0.6139726609 | AF43: 62.19543055 | AG43: 62.19543055 | AH43: 0.6139726609 | AI43: 0.3860273391 | AJ43: 1.386027339 | AK43: 1.4142 | AL43: Kaufmann, M.R. and Weatherred, J.D. 1982. Determination of potential direct solar irradiance.
C44: Ratio (Daily/Monthly) | D44: =D43/D42 -> 0.03064418306 | P44: [Coops, N.C., R.H. Waring, and J.B. Moncreiff. 2000. Estimating mean monthly incident solar radiation on horizontal and inclined slopes from mean monthly temperature extremes. Int. J. Biometerology 44:204-211. | AL44: Research Paper RM-242. Rocky Mt. Forest & Range Expt. Station. USDA. Fort Collins, Co.
C45: Total Monthly Solar (Direct+Diffuse) | D45: =$D42+30*INDEX($AB18:$AB29,Month) -> 58.38854784 | E45: MJ m-2 | AL45: Hungerford, R.D., Nemani, R.R., Running, S.W. and Coughlan, J.C. 1989. MTCLIM: a mountain
C46: Total Daily Solar (15th, Direct+Diffuse) | D46: =D43+INDEX($AB18:$AB29,Month) -> 1.80834864 | E46: MJ m-2 | AE46: Julian day for February 29+ is ignored in calculation | AL46: microclimate simulation model. USDA Intermoutain Res. Station , Paper INT 414.
AE47: Months 4,6,9,11 have 30 days | AL47: (eq. 8 in appendix D..)
C48: Day of Month >> | D48: 1 | E48: 2 | F48: 3 | G48: 4 | H48: 5 | I48: 6 | J48: 7 | K48: 8 | L48: 9 | M48: 10 | N48: 11 | O48: 12 | P48: 13 | Q48: 14 | R48: 15 | S48: 16 | T48: 17 | U48: 18 | V48: 19 | W48: 20 | X48: 21 | Y48: 22 | Z48: 23 | AA48: 24 | AB48: 25 | AC48: 26 | AD48: 27 | AE48: 28 | AF48: 29 | AG48: 30 | AH48: 31 | AJ48: Source of Equations used
C49: Julian date | D49: =ROUND(IF($D$38=1,31*($D$38-1)+D$48-0.4*$D$38-1.8+2,IF($D$38=2,31*($D$38-1)+D$48-0.4*$D$38-1.8+3,31*($D$38-1)+D$48-0.4*$D$38-1.8)),0) -> 1 | E49: 2 | F49: 3 | G49: 4 | H49: 5 | I49: 6 | J49: 7 | K49: 8 | L49: 9 | M49: 10 | N49: 11 | O49: 12 | P49: 13 | Q49: 14 | R49: 15 | S49: 16 | T49: 17 | U49: 18 | V49: 19 | W49: 20 | X49: 21 | Y49: 22 | Z49: 23 | AA49: 24 | AB49: 25 | AC49: 26 | AD49: 27 | AE49: 28 | AF49: =IF($D$38=2,0,ROUND(IF($D$38=1,31*($D$38-1)+AF$48-0.4*$D$38-1.8+2,IF($D$38=2,31*($D$38-1)+AF$48-0.4*$D$38-1.8+3,31*($D$38-1)+AF$48-0.4*$D$38-1.8)),0)) -> 29 | AG49: =IF($D$38=2,0,ROUND(IF($D$38=1,31*($D$38-1)+AG$48-0.4*$D$38-1.8+2,IF($D$38=2,31*($D$38-1)+AG$48-0.4*$D$38-1.8+3,31*($D$38-1)+AG$48-0.4*$D$38-1.8)),0)) -> 30 | AH49: =IF($D$38=2,0,ROUND(IF($D$38=1,31*($D$38-1)+AH$48-0.4*$D$38-1.8+2,IF($D$38=2,31*($D$38-1)+AH$48-0.4*$D$38-1.8+3,31*($D$38-1)+AH$48-0.4*$D$38-1.8)),0)) -> 31 | AJ49: Equn. 2 in Kaufmann + Weatherred (1982)
C50: Time of Year (radians) | D50: =2*PI()*D$49/365 -> 0.01721420632 | E50: 0.03442841264 | F50: 0.05164261896 | G50: 0.06885682528 | H50: 0.08607103161 | I50: 0.1032852379 | J50: 0.1204994442 | K50: 0.1377136506 | L50: 0.1549278569 | M50: 0.1721420632 | N50: 0.1893562695 | O50: 0.2065704759 | P50: 0.2237846822 | Q50: 0.2409988885 | R50: 0.2582130948 | S50: 0.2754273011 | T50: 0.2926415075 | U50: 0.3098557138 | V50: 0.3270699201 | W50: 0.3442841264 | X50: 0.3614983327 | Y50: 0.3787125391 | Z50: 0.3959267454 | AA50: 0.4131409517 | AB50: 0.430355158 | AC50: 0.4475693643 | AD50: 0.4647835707 | AE50: 0.481997777 | AF50: 0.4992119833 | AG50: 0.5164261896 | AH50: 0.533640396 | AJ50: Equn. A.5 in Hartmann (1994)
C51: mean Earth-Sun distance (squared ratio) | D51: =1.00011+0.034221*COS(D$50)+0.00128*SIN(D$50)+0.000719*COS(2*D$50)+0.000077*SIN(2*D$50) -> 1.035069187 | E51: 1.035077374 | F51: 1.035074557 | G51: 1.035060737 | H51: 1.035035918 | I51: 1.035000107 | J51: 1.034953319 | K51: 1.034895569 | L51: 1.034826877 | M51: 1.034747269 | N51: 1.034656772 | O51: 1.034555419 | P51: 1.034443246 | Q51: 1.034320294 | R51: 1.034186607 | S51: 1.034042232 | T51: 1.033887222 | U51: 1.033721633 | V51: 1.033545524 | W51: 1.033358958 | X51: 1.033162003 | Y51: 1.03295473 | Z51: 1.032737212 | AA51: 1.032509529 | AB51: 1.032271761 | AC51: 1.032023995 | AD51: 1.031766319 | AE51: 1.031498825 | AF51: 1.031221609 | AG51: 1.030934771 | AH51: 1.030638412 | AJ51: Equn. A.7 in Hartmann (1994)
C52: Solar input at top of Atmos | D52: =Solar_Constant*D$51 -> 1407.694095 | E52: 1407.705229 | F52: 1407.701398 | G52: 1407.682602 | H52: 1407.648848 | I52: 1407.600146 | J52: 1407.536514 | K52: 1407.457974 | L52: 1407.364553 | M52: 1407.256286 | N52: 1407.13321 | O52: 1406.99537 | P52: 1406.842815 | Q52: 1406.6756 | R52: 1406.493785 | S52: 1406.297436 | T52: 1406.086622 | U52: 1405.861421 | V52: 1405.621912 | W52: 1405.368183 | X52: 1405.100324 | Y52: 1404.818432 | Z52: 1404.522608 | AA52: 1404.212959 | AB52: 1403.889595 | AC52: 1403.552633 | AD52: 1403.202193 | AE52: 1402.838402 | AF52: 1402.461389 | AG52: 1402.071289 | AH52: 1401.668241
C53: delta (Solar declination) | D53: =23.5*SIN((0.9863*(284+D$49))*PI()/180) -> -23.06073287 | E53: -22.97946966 | F53: -22.89139716 | G53: -22.79654146 | H53: -22.69493067 | I53: -22.58659491 | J53: -22.47156626 | K53: -22.34987883 | L53: -22.22156866 | M53: -22.08667378 | N53: -21.94523416 | O53: -21.79729172 | P53: -21.64289028 | Q53: -21.4820756 | R53: -21.31489534 | S53: -21.14139904 | T53: -20.96163809 | U53: -20.77566578 | V53: -20.58353721 | W53: -20.38530931 | X53: -20.18104082 | Y53: -19.97079227 | Z53: -19.75462596 | AA53: -19.53260594 | AB53: -19.304798 | AC53: -19.07126966 | AD53: -18.8320901 | AE53: -18.5873302 | AF53: -18.33706248 | AG53: -18.08136112 | AH53: -17.82030187 | AJ53: Equn. 3 in Kaufmann& Weatherred (1982)
C54: Sunrise | D54: =12-(((ACOS(-TAN((Latitude*PI())/180)*TAN((D$53*PI()/180)))*180/PI()/15))) -> 7.625581952 | E54: 7.618775217 | F54: 7.611413526 | G54: 7.60350263 | H54: 7.595048652 | I54: 7.586058072 | J54: 7.576537703 | K54: 7.566494679 | L54: 7.555936435 | M54: 7.544870686 | N54: 7.533305413 | O54: 7.521248836 | P54: 7.508709403 | Q54: 7.495695763 | R54: 7.482216754 | S54: 7.468281375 | T54: 7.453898774 | U54: 7.439078228 | V54: 7.423829119 | W54: 7.408160922 | X54: 7.392083187 | Y54: 7.375605516 | Z54: 7.358737552 | AA54: 7.341488962 | AB54: 7.323869418 | AC54: 7.305888587 | AD54: 7.287556114 | AE54: 7.268881608 | AF54: 7.249874632 | AG54: 7.230544688 | AH54: 7.210901207 | AJ54: Equns. 7&8 in Kaufmann& Weatherred (1982)
C55: Sunset | D55: =12+(((ACOS(-TAN((Latitude*PI())/180)*TAN((D$53*PI()/180)))*180/PI()/15))) -> 16.37441805 | E55: 16.38122478 | F55: 16.38858647 | G55: 16.39649737 | H55: 16.40495135 | I55: 16.41394193 | J55: 16.4234623 | K55: 16.43350532 | L55: 16.44406357 | M55: 16.45512931 | N55: 16.46669459 | O55: 16.47875116 | P55: 16.4912906 | Q55: 16.50430424 | R55: 16.51778325 | S55: 16.53171863 | T55: 16.54610123 | U55: 16.56092177 | V55: 16.57617088 | W55: 16.59183908 | X55: 16.60791681 | Y55: 16.62439448 | Z55: 16.64126245 | AA55: 16.65851104 | AB55: 16.67613058 | AC55: 16.69411141 | AD55: 16.71244389 | AE55: 16.73111839 | AF55: 16.75012537 | AG55: 16.76945531 | AH55: 16.78909879 | AJ55: Equns 7&8 in Kaufmann& Weatherred (1982)
C56: Daylength | D56: =(((ACOS(-TAN((Latitude*PI())/180)*TAN((D$53*PI()/180)))*180/PI()/15)))*2 -> 8.748836097 | E56: 8.762449565 | F56: 8.777172948 | G56: 8.792994741 | H56: 8.809902695 | I56: 8.827883856 | J56: 8.846924594 | K56: 8.867010642 | L56: 8.888127131 | M56: 8.910258628 | N56: 8.933389175 | O56: 8.957502328 | P56: 8.982581195 | Q56: 9.008608473 | R56: 9.035566493 | S56: 9.06343725 | T56: 9.092202451 | U56: 9.121843545 | V56: 9.152341763 | W56: 9.183678155 | X56: 9.215833626 | Y56: 9.248788968 | Z56: 9.282524896 | AA56: 9.317022077 | AB56: 9.352261164 | AC56: 9.388222826 | AD56: 9.424887772 | AE56: 9.462236783 | AF56: 9.500250736 | AG56: 9.538910624 | AH56: 9.578197585
C57: (NB Equation of time has NOT been implemented yet) | AJ57: Daily Integral
C58: Direct radiation (Wm-2) | AJ58: 1 | AK58: 2 | AL58: 3 | AM58: 4 | AN58: 5 | AO58: 6 | AP58: 7 | AQ58: 8 | AR58: 9 | AS58: 10 | AT58: 11 | AU58: 12 | AV58: 13 | AW58: 14 | AX58: 15 | AY58: 16 | AZ58: 17 | BA58: 18 | BB58: 19 | BC58: 20 | BD58: 21 | BE58: 22 | BF58: 23 | BG58: 24 | BH58: 25 | BI58: 26 | BJ58: 27 | BK58: 28 | BL58: 29 | BM58: 30 | BN58: 31
C59: Hour v 1 | D59: =IF(D110>0,D$52*Transmissivity^D110*D85,0) -> 0 | E59: 0 | F59: 0 | G59: 0 | H59: 0 | I59: 0 | J59: 0 | K59: 0 | L59: 0 | M59: 0 | N59: 0 | O59: 0 | P59: 0 | Q59: 0 | R59: 0 | S59: 0 | T59: 0 | U59: 0 | V59: 0 | W59: 0 | X59: 0 | Y59: 0 | Z59: 0 | AA59: 0 | AB59: 0 | AC59: 0 | AD59: 0 | AE59: 0 | AF59: =IF(Month=2,0,IF(AF110>0,AF$52*Transmissivity^AF110*AF85,0)) -> 0 | AG59: 0 | AH59: =IF(Month=2,0,IF(Month=4,0,IF(Month=6,0,IF(Month=9,0,IF(Month=11,0,IF(AH110>0,AH$52*Transmissivity^AH110*AH85,0)))))) -> 0 | AJ59: =D59*3600 -> 0 | AK59: =E59*3600 -> 0 | AL59: =F59*3600 -> 0 | AM59: =G59*3600 -> 0 | AN59: =H59*3600 -> 0 | AO59: =I59*3600 -> 0 | AP59: =J59*3600 -> 0 | AQ59: =K59*3600 -> 0 | AR59: =L59*3600 -> 0 | AS59: =M59*3600 -> 0 | AT59: =N59*3600 -> 0 | AU59: =O59*3600 -> 0 | AV59: =P59*3600 -> 0 | AW59: =Q59*3600 -> 0 | AX59: =R59*3600 -> 0 | AY59: =S59*3600 -> 0 | AZ59: =T59*3600 -> 0 | BA59: =U59*3600 -> 0 | BB59: =V59*3600 -> 0 | BC59: =W59*3600 -> 0 | BD59: =X59*3600 -> 0 | BE59: =Y59*3600 -> 0 | BF59: =Z59*3600 -> 0 | BG59: =AA59*3600 -> 0 | BH59: =AB59*3600 -> 0 | BI59: =AC59*3600 -> 0 | BJ59: =AD59*3600 -> 0 | BK59: =AE59*3600 -> 0 | BL59: =AF59*3600 -> 0 | BM59: =AG59*3600 -> 0 | BN59: =AH59*3600 -> 0
C60: 2 | D60: =IF(D111>0,D$52*Transmissivity^D111*D86,0) -> 0 | E60: 0 | F60: 0 | G60: 0 | H60: 0 | I60: 0 | J60: 0 | K60: 0 | L60: 0 | M60: 0 | N60: 0 | O60: 0 | P60: 0 | Q60: 0 | R60: 0 | S60: 0 | T60: 0 | U60: 0 | V60: 0 | W60: 0 | X60: 0 | Y60: 0 | Z60: 0 | AA60: 0 | AB60: 0 | AC60: 0 | AD60: 0 | AE60: 0 | AF60: 0 | AG60: 0 | AH60: 0 | AJ60: 0 | AK60: 0 | AL60: 0 | AM60: 0 | AN60: 0 | AO60: 0 | AP60: 0 | AQ60: 0 | AR60: 0 | AS60: 0 | AT60: 0 | AU60: 0 | AV60: 0 | AW60: 0 | AX60: 0 | AY60: 0 | AZ60: 0 | BA60: 0 | BB60: 0 | BC60: 0 | BD60: 0 | BE60: 0 | BF60: 0 | BG60: 0 | BH60: 0 | BI60: 0 | BJ60: 0 | BK60: 0 | BL60: 0 | BM60: 0 | BN60: 0
C61: 3 | D61: =IF(D112>0,D$52*Transmissivity^D112*D87,0) -> 0 | E61: 0 | F61: 0 | G61: 0 | H61: 0 | I61: 0 | J61: 0 | K61: 0 | L61: 0 | M61: 0 | N61: 0 | O61: 0 | P61: 0 | Q61: 0 | R61: 0 | S61: 0 | T61: 0 | U61: 0 | V61: 0 | W61: 0 | X61: 0 | Y61: 0 | Z61: 0 | AA61: 0 | AB61: 0 | AC61: 0 | AD61: 0 | AE61: 0 | AF61: 0 | AG61: 0 | AH61: 0 | AJ61: 0 | AK61: 0 | AL61: 0 | AM61: 0 | AN61: 0 | AO61: 0 | AP61: 0 | AQ61: 0 | AR61: 0 | AS61: 0 | AT61: 0 | AU61: 0 | AV61: 0 | AW61: 0 | AX61: 0 | AY61: 0 | AZ61: 0 | BA61: 0 | BB61: 0 | BC61: 0 | BD61: 0 | BE61: 0 | BF61: 0 | BG61: 0 | BH61: 0 | BI61: 0 | BJ61: 0 | BK61: 0 | BL61: 0 | BM61: 0 | BN61: 0
C62: 4 | D62: =IF(D113>0,D$52*Transmissivity^D113*D88,0) -> 0 | E62: 0 | F62: 0 | G62: 0 | H62: 0 | I62: 0 | J62: 0 | K62: 0 | L62: 0 | M62: 0 | N62: 0 | O62: 0 | P62: 0 | Q62: 0 | R62: 0 | S62: 0 | T62: 0 | U62: 0 | V62: 0 | W62: 0 | X62: 0 | Y62: 0 | Z62: 0 | AA62: 0 | AB62: 0 | AC62: 0 | AD62: 0 | AE62: 0 | AF62: 0 | AG62: 0 | AH62: 0 | AJ62: 0 | AK62: 0 | AL62: 0 | AM62: 0 | AN62: 0 | AO62: 0 | AP62: 0 | AQ62: 0 | AR62: 0 | AS62: 0 | AT62: 0 | AU62: 0 | AV62: 0 | AW62: 0 | AX62: 0 | AY62: 0 | AZ62: 0 | BA62: 0 | BB62: 0 | BC62: 0 | BD62: 0 | BE62: 0 | BF62: 0 | BG62: 0 | BH62: 0 | BI62: 0 | BJ62: 0 | BK62: 0 | BL62: 0 | BM62: 0 | BN62: 0
C63: 5 | D63: =IF(D114>0,D$52*Transmissivity^D114*D89,0) -> 0 | E63: 0 | F63: 0 | G63: 0 | H63: 0 | I63: 0 | J63: 0 | K63: 0 | L63: 0 | M63: 0 | N63: 0 | O63: 0 | P63: 0 | Q63: 0 | R63: 0 | S63: 0 | T63: 0 | U63: 0 | V63: 0 | W63: 0 | X63: 0 | Y63: 0 | Z63: 0 | AA63: 0 | AB63: 0 | AC63: 0 | AD63: 0 | AE63: 0 | AF63: 0 | AG63: 0 | AH63: 0 | AJ63: 0 | AK63: 0 | AL63: 0 | AM63: 0 | AN63: 0 | AO63: 0 | AP63: 0 | AQ63: 0 | AR63: 0 | AS63: 0 | AT63: 0 | AU63: 0 | AV63: 0 | AW63: 0 | AX63: 0 | AY63: 0 | AZ63: 0 | BA63: 0 | BB63: 0 | BC63: 0 | BD63: 0 | BE63: 0 | BF63: 0 | BG63: 0 | BH63: 0 | BI63: 0 | BJ63: 0 | BK63: 0 | BL63: 0 | BM63: 0 | BN63: 0
C64: 6 | D64: =IF(D115>0,D$52*Transmissivity^D115*D90,0) -> 0 | E64: 0 | F64: 0 | G64: 0 | H64: 0 | I64: 0 | J64: 0 | K64: 0 | L64: 0 | M64: 0 | N64: 0 | O64: 0 | P64: 0 | Q64: 0 | R64: 0 | S64: 0 | T64: 0 | U64: 0 | V64: 0 | W64: 0 | X64: 0 | Y64: 0 | Z64: 0 | AA64: 0 | AB64: 0 | AC64: 0 | AD64: 0 | AE64: 0 | AF64: 0 | AG64: 0 | AH64: 0 | AJ64: 0 | AK64: 0 | AL64: 0 | AM64: 0 | AN64: 0 | AO64: 0 | AP64: 0 | AQ64: 0 | AR64: 0 | AS64: 0 | AT64: 0 | AU64: 0 | AV64: 0 | AW64: 0 | AX64: 0 | AY64: 0 | AZ64: 0 | BA64: 0 | BB64: 0 | BC64: 0 | BD64: 0 | BE64: 0 | BF64: 0 | BG64: 0 | BH64: 0 | BI64: 0 | BJ64: 0 | BK64: 0 | BL64: 0 | BM64: 0 | BN64: 0
C65: 7 | D65: =IF(D116>0,D$52*Transmissivity^D116*D91,0) -> 0.009405444841 | E65: 0.01054654207 | F65: 0.01191026541 | G65: 0.01353870293 | H65: 0.01548235487 | I65: 0.01780164032 | J65: 0.02056863654 | K65: 0.02386907243 | L65: 0.02780459641 | M65: 0.03249533643 | N65: 0.03808276656 | O65: 0.04473288944 | P65: 0.052639738 | Q65: 0.0620291924 | R65: 0.07316309917 | S65: 0.08634367007 | T65: 0.1019181272 | U65: 0.1202835495 | V65: 0.1418918648 | W65: 0.1672549181 | X65: 0.1969495404 | Y65: 0.2316225255 | Z65: 0.2719954216 | AA65: 0.3188690326 | AB65: 0.3731275225 | AC65: 0.4357420141 | AD65: 0.5077735747 | AE65: 0.590375487 | AF65: 0.6847947071 | AG65: 0.7923724262 | AH65: 0.9145436614 | AJ65: 33.85960143 | AK65: 37.96755145 | AL65: 42.87695549 | AM65: 48.73933056 | AN65: 55.73647753 | AO65: 64.08590515 | AP65: 74.04709154 | AQ65: 85.92866076 | AR65: 100.0965471 | AS65: 116.9832112 | AT65: 137.0979596 | AU65: 161.038402 | AV65: 189.5030568 | AW65: 223.3050926 | AX65: 263.387157 | AY65: 310.8372122 | AZ65: 366.9052579 | BA65: 433.0207784 | BB65: 510.8107131 | BC65: 602.1177053 | BD65: 709.0183455 | BE65: 833.8410918 | BF65: 979.1835178 | BG65: 1147.928517 | BH65: 1343.259081 | BI65: 1568.671251 | BJ65: 1827.984869 | BK65: 2125.351753 | BL65: 2465.260946 | BM65: 2852.540734 | BN65: 3292.357181
C66: 8 | D66: =IF(D117>0,D$52*Transmissivity^D117*D92,0) -> 9.712064092 | E66: 9.906392283 | F66: 10.11975014 | G66: 10.35277074 | H66: 10.60613682 | I66: 10.88058053 | J66: 11.17688321 | K66: 11.49587495 | L66: 11.83843409 | M66: 12.20548653 | N66: 12.59800484 | O66: 13.01700731 | P66: 13.46355661 | Q66: 13.93875846 | R66: 14.44375986 | S66: 14.97974723 | T66: 15.54794429 | U66: 16.14960956 | V66: 16.78603377 | W66: 17.45853686 | X66: 18.16846479 | Y66: 18.91718606 | Z66: 19.70608793 | AA66: 20.53657243 | AB66: 21.41005207 | AC66: 22.32794531 | AD66: 23.29167182 | AE66: 24.30264751 | AF66: 25.36227933 | AG66: 26.47195994 | AH66: 27.6330622 | AJ66: 34963.43073 | AK66: 35663.01222 | AL66: 36431.10049 | AM66: 37269.97467 | AN66: 38182.09256 | AO66: 39170.08992 | AP66: 40236.77956 | AQ66: 41385.14983 | AR66: 42618.36274 | AS66: 43939.7515 | AT66: 45352.81744 | AU66: 46861.2263 | AV66: 48468.80381 | AW66: 50179.53045 | AX66: 51997.53548 | AY66: 53927.09004 | AZ66: 55972.59944 | BA66: 58138.59443 | BB66: 60429.72157 | BC66: 62850.73269 | BD66: 65406.47324 | BE66: 68101.86981 | BF66: 70941.91655 | BG66: 73931.66076 | BH66: 77076.18745 | BI66: 80380.60312 | BJ66: 83850.01856 | BK66: 87489.53103 | BL66: 91304.20557 | BM66: 95299.05578 | BN66: 99479.02392
C67: 9 | D67: =IF(D118>0,D$52*Transmissivity^D118*D93,0) -> 44.48527779 | E67: 44.96048027 | F67: 45.47822171 | G67: 46.03910529 | H67: 46.64377345 | I67: 47.29290626 | J67: 47.98721951 | K67: 48.72746286 | L67: 49.51441766 | M67: 50.34889471 | N67: 51.23173183 | O67: 52.16379131 | P67: 53.14595718 | Q67: 54.17913228 | R67: 55.26423531 | S67: 56.40219756 | T67: 57.59395963 | U67: 58.84046795 | V67: 60.14267112 | W67: 61.50151622 | X67: 62.91794492 | Y67: 64.39288949 | Z67: 65.92726873 | AA67: 67.52198379 | AB67: 69.17791387 | AC67: 70.89591195 | AD67: 72.6768004 | AE67: 74.52136652 | AF67: 76.43035815 | AG67: 78.40447918 | AH67: 80.44438516 | AJ67: 160147 | AK67: 161857.729 | AL67: 163721.5982 | AM67: 165740.779 | AN67: 167917.5844 | AO67: 170254.4625 | AP67: 172753.9902 | AQ67: 175418.8663 | AR67: 178251.9036 | AS67: 181256.021 | AT67: 184434.2346 | AU67: 187789.6487 | AV67: 191325.4458 | AW67: 195044.8762 | AX67: 198951.2471 | AY67: 203047.9112 | AZ67: 207338.2547 | BA67: 211825.6846 | BB67: 216513.616 | BC67: 221405.4584 | BD67: 226504.6017 | BE67: 231814.4022 | BF67: 237338.1674 | BG67: 243079.1416 | BH67: 249040.4899 | BI67: 255225.283 | BJ67: 261636.4814 | BK67: 268276.9195 | BL67: 275149.2893 | BM67: 282256.125 | BN67: 289599.7866
C68: 10 | D68: =IF(D119>0,D$52*Transmissivity^D119*D94,0) -> 79.62016756 | E68: 80.26528751 | F68: 80.96659305 | G68: 81.72457502 | H68: 82.53975289 | I68: 83.41267279 | J68: 84.34390542 | K68: 85.33404384 | L68: 86.38370111 | M68: 87.49350777 | N68: 88.6641092 | O68: 89.89616289 | P68: 91.19033547 | Q68: 92.54729975 | R68: 93.96773156 | S68: 95.45230646 | T68: 97.00169642 | U68: 98.61656632 | V68: 100.2975704 | W68: 102.0453486 | X68: 103.860523 | Y68: 105.7436936 | Z68: 107.695435 | AA68: 109.7162924 | AB68: 111.8067774 | AC68: 113.9673643 | AD68: 116.1984862 | AE68: 118.5005309 | AF68: 120.8738374 | AG68: 123.3186916 | AH68: 125.8353225 | AJ68: 286632.6032 | AK68: 288955.035 | AL68: 291479.735 | AM68: 294208.4701 | AN68: 297143.1104 | AO68: 300285.622 | AP68: 303638.0595 | AQ68: 307202.5578 | AR68: 310981.324 | AS68: 314976.628 | AT68: 319190.7931 | AU68: 323626.1864 | AV68: 328285.2077 | AW68: 333170.2791 | AX68: 338283.8336 | AY68: 343628.3033 | AZ68: 349206.1071 | BA68: 355019.6388 | BB68: 361071.2534 | BC68: 367363.255 | BD68: 373897.8826 | BE68: 380677.2969 | BF68: 387703.5662 | BG68: 394978.6528 | BH68: 402504.3987 | BI68: 410282.5115 | BJ68: 418314.5502 | BK68: 426601.9114 | BL68: 435145.8148 | BM68: 443947.2896 | BN68: 453007.1611
C69: 11 | D69: =IF(D120>0,D$52*Transmissivity^D120*D95,0) -> 93.64040694 | E69: 94.34019876 | F69: 95.10050413 | G69: 95.92177054 | H69: 96.80447035 | I69: 97.7490988 | J69: 98.75617192 | K69: 99.82622423 | L69: 100.9598064 | M69: 102.1574827 | N69: 103.4198283 | O69: 104.7474267 | P69: 106.1408664 | Q69: 107.6007384 | R69: 109.1276327 | S69: 110.7221352 | T69: 112.3848244 | U69: 114.1162679 | V69: 115.917019 | W69: 117.7876131 | X69: 119.728564 | Y69: 121.7403602 | Z69: 123.8234612 | AA69: 125.978294 | AB69: 128.2052488 | AC69: 130.5046757 | AD69: 132.8768806 | AE69: 135.3221218 | AF69: 137.8406059 | AG69: 140.4324844 | AH69: 143.0978498 | AJ69: 337105.465 | AK69: 339624.7155 | AL69: 342361.8149 | AM69: 345318.374 | AN69: 348496.0933 | AO69: 351896.7557 | AP69: 355522.2189 | AQ69: 359374.4072 | AR69: 363455.303 | AS69: 367766.9377 | AT69: 372311.382 | AU69: 377090.736 | AV69: 382107.119 | AW69: 387362.6582 | AX69: 392859.4776 | AY69: 398599.6866 | AZ69: 404585.3677 | BA69: 410818.5644 | BB69: 417301.2685 | BC69: 424035.4072 | BD69: 431022.8303 | BE69: 438265.2965 | BF69: 445764.4603 | BG69: 453521.8582 | BH69: 461538.8955 | BI69: 469816.8324 | BJ69: 478356.7702 | BK69: 487159.6386 | BL69: 496226.1813 | BM69: 505556.9437 | BN69: 515152.2594
C70: 12 | D70: =IF(D121>0,D$52*Transmissivity^D121*D96,0) -> 79.62016756 | E70: 80.26528751 | F70: 80.96659305 | G70: 81.72457502 | H70: 82.53975289 | I70: 83.41267279 | J70: 84.34390542 | K70: 85.33404384 | L70: 86.38370111 | M70: 87.49350777 | N70: 88.6641092 | O70: 89.89616289 | P70: 91.19033547 | Q70: 92.54729975 | R70: 93.96773156 | S70: 95.45230646 | T70: 97.00169642 | U70: 98.61656632 | V70: 100.2975704 | W70: 102.0453486 | X70: 103.860523 | Y70: 105.7436936 | Z70: 107.695435 | AA70: 109.7162924 | AB70: 111.8067774 | AC70: 113.9673643 | AD70: 116.1984862 | AE70: 118.5005309 | AF70: 120.8738374 | AG70: 123.3186916 | AH70: 125.8353225 | AJ70: 286632.6032 | AK70: 288955.035 | AL70: 291479.735 | AM70: 294208.4701 | AN70: 297143.1104 | AO70: 300285.622 | AP70: 303638.0595 | AQ70: 307202.5578 | AR70: 310981.324 | AS70: 314976.628 | AT70: 319190.7931 | AU70: 323626.1864 | AV70: 328285.2077 | AW70: 333170.2791 | AX70: 338283.8336 | AY70: 343628.3033 | AZ70: 349206.1071 | BA70: 355019.6388 | BB70: 361071.2534 | BC70: 367363.255 | BD70: 373897.8826 | BE70: 380677.2969 | BF70: 387703.5662 | BG70: 394978.6528 | BH70: 402504.3987 | BI70: 410282.5115 | BJ70: 418314.5502 | BK70: 426601.9114 | BL70: 435145.8148 | BM70: 443947.2896 | BN70: 453007.1611
C71: 13 | D71: =IF(D122>0,D$52*Transmissivity^D122*D97,0) -> 44.48527779 | E71: 44.96048027 | F71: 45.47822171 | G71: 46.03910529 | H71: 46.64377345 | I71: 47.29290626 | J71: 47.98721951 | K71: 48.72746286 | L71: 49.51441766 | M71: 50.34889471 | N71: 51.23173183 | O71: 52.16379131 | P71: 53.14595718 | Q71: 54.17913228 | R71: 55.26423531 | S71: 56.40219756 | T71: 57.59395963 | U71: 58.84046795 | V71: 60.14267112 | W71: 61.50151622 | X71: 62.91794492 | Y71: 64.39288949 | Z71: 65.92726873 | AA71: 67.52198379 | AB71: 69.17791387 | AC71: 70.89591195 | AD71: 72.6768004 | AE71: 74.52136652 | AF71: 76.43035815 | AG71: 78.40447918 | AH71: 80.44438516 | AJ71: 160147 | AK71: 161857.729 | AL71: 163721.5982 | AM71: 165740.779 | AN71: 167917.5844 | AO71: 170254.4625 | AP71: 172753.9902 | AQ71: 175418.8663 | AR71: 178251.9036 | AS71: 181256.021 | AT71: 184434.2346 | AU71: 187789.6487 | AV71: 191325.4458 | AW71: 195044.8762 | AX71: 198951.2471 | AY71: 203047.9112 | AZ71: 207338.2547 | BA71: 211825.6846 | BB71: 216513.616 | BC71: 221405.4584 | BD71: 226504.6017 | BE71: 231814.4022 | BF71: 237338.1674 | BG71: 243079.1416 | BH71: 249040.4899 | BI71: 255225.283 | BJ71: 261636.4814 | BK71: 268276.9195 | BL71: 275149.2893 | BM71: 282256.125 | BN71: 289599.7866
C72: 14 | D72: =IF(D123>0,D$52*Transmissivity^D123*D98,0) -> 9.712064092 | E72: 9.906392283 | F72: 10.11975014 | G72: 10.35277074 | H72: 10.60613682 | I72: 10.88058053 | J72: 11.17688321 | K72: 11.49587495 | L72: 11.83843409 | M72: 12.20548653 | N72: 12.59800484 | O72: 13.01700731 | P72: 13.46355661 | Q72: 13.93875846 | R72: 14.44375986 | S72: 14.97974723 | T72: 15.54794429 | U72: 16.14960956 | V72: 16.78603377 | W72: 17.45853686 | X72: 18.16846479 | Y72: 18.91718606 | Z72: 19.70608793 | AA72: 20.53657243 | AB72: 21.41005207 | AC72: 22.32794531 | AD72: 23.29167182 | AE72: 24.30264751 | AF72: 25.36227933 | AG72: 26.47195994 | AH72: 27.6330622 | AJ72: 34963.43073 | AK72: 35663.01222 | AL72: 36431.10049 | AM72: 37269.97467 | AN72: 38182.09256 | AO72: 39170.08992 | AP72: 40236.77956 | AQ72: 41385.14983 | AR72: 42618.36274 | AS72: 43939.7515 | AT72: 45352.81744 | AU72: 46861.2263 | AV72: 48468.80381 | AW72: 50179.53045 | AX72: 51997.53548 | AY72: 53927.09004 | AZ72: 55972.59944 | BA72: 58138.59443 | BB72: 60429.72157 | BC72: 62850.73269 | BD72: 65406.47324 | BE72: 68101.86981 | BF72: 70941.91655 | BG72: 73931.66076 | BH72: 77076.18745 | BI72: 80380.60312 | BJ72: 83850.01856 | BK72: 87489.53103 | BL72: 91304.20557 | BM72: 95299.05578 | BN72: 99479.02392
C73: 15 | D73: =IF(D124>0,D$52*Transmissivity^D124*D99,0) -> 0.009405444841 | E73: 0.01054654207 | F73: 0.01191026541 | G73: 0.01353870293 | H73: 0.01548235487 | I73: 0.01780164032 | J73: 0.02056863654 | K73: 0.02386907243 | L73: 0.02780459641 | M73: 0.03249533643 | N73: 0.03808276656 | O73: 0.04473288944 | P73: 0.052639738 | Q73: 0.0620291924 | R73: 0.07316309917 | S73: 0.08634367007 | T73: 0.1019181272 | U73: 0.1202835495 | V73: 0.1418918648 | W73: 0.1672549181 | X73: 0.1969495404 | Y73: 0.2316225255 | Z73: 0.2719954216 | AA73: 0.3188690326 | AB73: 0.3731275225 | AC73: 0.4357420141 | AD73: 0.5077735747 | AE73: 0.590375487 | AF73: 0.6847947071 | AG73: 0.7923724262 | AH73: 0.9145436614 | AJ73: 33.85960143 | AK73: 37.96755145 | AL73: 42.87695549 | AM73: 48.73933056 | AN73: 55.73647753 | AO73: 64.08590515 | AP73: 74.04709154 | AQ73: 85.92866076 | AR73: 100.0965471 | AS73: 116.9832112 | AT73: 137.0979596 | AU73: 161.038402 | AV73: 189.5030568 | AW73: 223.3050926 | AX73: 263.387157 | AY73: 310.8372122 | AZ73: 366.9052579 | BA73: 433.0207784 | BB73: 510.8107131 | BC73: 602.1177053 | BD73: 709.0183455 | BE73: 833.8410918 | BF73: 979.1835178 | BG73: 1147.928517 | BH73: 1343.259081 | BI73: 1568.671251 | BJ73: 1827.984869 | BK73: 2125.351753 | BL73: 2465.260946 | BM73: 2852.540734 | BN73: 3292.357181
C74: 16 | D74: =IF(D125>0,D$52*Transmissivity^D125*D100,0) -> 0 | E74: 0 | F74: 0 | G74: 0 | H74: 0 | I74: 0 | J74: 0 | K74: 0 | L74: 0 | M74: 0 | N74: 0 | O74: 0 | P74: 0 | Q74: 0 | R74: 0 | S74: 0 | T74: 0 | U74: 0 | V74: 0 | W74: 0 | X74: 0 | Y74: 0 | Z74: 0 | AA74: 0 | AB74: 0 | AC74: 0 | AD74: 0 | AE74: 0 | AF74: 0 | AG74: 0 | AH74: 0 | AJ74: 0 | AK74: 0 | AL74: 0 | AM74: 0 | AN74: 0 | AO74: 0 | AP74: 0 | AQ74: 0 | AR74: 0 | AS74: 0 | AT74: 0 | AU74: 0 | AV74: 0 | AW74: 0 | AX74: 0 | AY74: 0 | AZ74: 0 | BA74: 0 | BB74: 0 | BC74: 0 | BD74: 0 | BE74: 0 | BF74: 0 | BG74: 0 | BH74: 0 | BI74: 0 | BJ74: 0 | BK74: 0 | BL74: 0 | BM74: 0 | BN74: 0
C75: 17 | D75: =IF(D126>0,D$52*Transmissivity^D126*D101,0) -> 0 | E75: 0 | F75: 0 | G75: 0 | H75: 0 | I75: 0 | J75: 0 | K75: 0 | L75: 0 | M75: 0 | N75: 0 | O75: 0 | P75: 0 | Q75: 0 | R75: 0 | S75: 0 | T75: 0 | U75: 0 | V75: 0 | W75: 0 | X75: 0 | Y75: 0 | Z75: 0 | AA75: 0 | AB75: 0 | AC75: 0 | AD75: 0 | AE75: 0 | AF75: 0 | AG75: 0 | AH75: 0 | AJ75: 0 | AK75: 0 | AL75: 0 | AM75: 0 | AN75: 0 | AO75: 0 | AP75: 0 | AQ75: 0 | AR75: 0 | AS75: 0 | AT75: 0 | AU75: 0 | AV75: 0 | AW75: 0 | AX75: 0 | AY75: 0 | AZ75: 0 | BA75: 0 | BB75: 0 | BC75: 0 | BD75: 0 | BE75: 0 | BF75: 0 | BG75: 0 | BH75: 0 | BI75: 0 | BJ75: 0 | BK75: 0 | BL75: 0 | BM75: 0 | BN75: 0
C76: 18 | D76: =IF(D127>0,D$52*Transmissivity^D127*D102,0) -> 0 | E76: 0 | F76: 0 | G76: 0 | H76: 0 | I76: 0 | J76: 0 | K76: 0 | L76: 0 | M76: 0 | N76: 0 | O76: 0 | P76: 0 | Q76: 0 | R76: 0 | S76: 0 | T76: 0 | U76: 0 | V76: 0 | W76: 0 | X76: 0 | Y76: 0 | Z76: 0 | AA76: 0 | AB76: 0 | AC76: 0 | AD76: 0 | AE76: 0 | AF76: 0 | AG76: 0 | AH76: 0 | AJ76: 0 | AK76: 0 | AL76: 0 | AM76: 0 | AN76: 0 | AO76: 0 | AP76: 0 | AQ76: 0 | AR76: 0 | AS76: 0 | AT76: 0 | AU76: 0 | AV76: 0 | AW76: 0 | AX76: 0 | AY76: 0 | AZ76: 0 | BA76: 0 | BB76: 0 | BC76: 0 | BD76: 0 | BE76: 0 | BF76: 0 | BG76: 0 | BH76: 0 | BI76: 0 | BJ76: 0 | BK76: 0 | BL76: 0 | BM76: 0 | BN76: 0
C77: 19 | D77: =IF(D128>0,D$52*Transmissivity^D128*D103,0) -> 0 | E77: 0 | F77: 0 | G77: 0 | H77: 0 | I77: 0 | J77: 0 | K77: 0 | L77: 0 | M77: 0 | N77: 0 | O77: 0 | P77: 0 | Q77: 0 | R77: 0 | S77: 0 | T77: 0 | U77: 0 | V77: 0 | W77: 0 | X77: 0 | Y77: 0 | Z77: 0 | AA77: 0 | AB77: 0 | AC77: 0 | AD77: 0 | AE77: 0 | AF77: 0 | AG77: 0 | AH77: 0 | AJ77: 0 | AK77: 0 | AL77: 0 | AM77: 0 | AN77: 0 | AO77: 0 | AP77: 0 | AQ77: 0 | AR77: 0 | AS77: 0 | AT77: 0 | AU77: 0 | AV77: 0 | AW77: 0 | AX77: 0 | AY77: 0 | AZ77: 0 | BA77: 0 | BB77: 0 | BC77: 0 | BD77: 0 | BE77: 0 | BF77: 0 | BG77: 0 | BH77: 0 | BI77: 0 | BJ77: 0 | BK77: 0 | BL77: 0 | BM77: 0 | BN77: 0
C78: 20 | D78: =IF(D129>0,D$52*Transmissivity^D129*D104,0) -> 0 | E78: 0 | F78: 0 | G78: 0 | H78: 0 | I78: 0 | J78: 0 | K78: 0 | L78: 0 | M78: 0 | N78: 0 | O78: 0 | P78: 0 | Q78: 0 | R78: 0 | S78: 0 | T78: 0 | U78: 0 | V78: 0 | W78: 0 | X78: 0 | Y78: 0 | Z78: 0 | AA78: 0 | AB78: 0 | AC78: 0 | AD78: 0 | AE78: 0 | AF78: 0 | AG78: 0 | AH78: 0 | AJ78: 0 | AK78: 0 | AL78: 0 | AM78: 0 | AN78: 0 | AO78: 0 | AP78: 0 | AQ78: 0 | AR78: 0 | AS78: 0 | AT78: 0 | AU78: 0 | AV78: 0 | AW78: 0 | AX78: 0 | AY78: 0 | AZ78: 0 | BA78: 0 | BB78: 0 | BC78: 0 | BD78: 0 | BE78: 0 | BF78: 0 | BG78: 0 | BH78: 0 | BI78: 0 | BJ78: 0 | BK78: 0 | BL78: 0 | BM78: 0 | BN78: 0
C79: 21 | D79: =IF(D130>0,D$52*Transmissivity^D130*D105,0) -> 0 | E79: 0 | F79: 0 | G79: 0 | H79: 0 | I79: 0 | J79: 0 | K79: 0 | L79: 0 | M79: 0 | N79: 0 | O79: 0 | P79: 0 | Q79: 0 | R79: 0 | S79: 0 | T79: 0 | U79: 0 | V79: 0 | W79: 0 | X79: 0 | Y79: 0 | Z79: 0 | AA79: 0 | AB79: 0 | AC79: 0 | AD79: 0 | AE79: 0 | AF79: 0 | AG79: 0 | AH79: 0 | AJ79: 0 | AK79: 0 | AL79: 0 | AM79: 0 | AN79: 0 | AO79: 0 | AP79: 0 | AQ79: 0 | AR79: 0 | AS79: 0 | AT79: 0 | AU79: 0 | AV79: 0 | AW79: 0 | AX79: 0 | AY79: 0 | AZ79: 0 | BA79: 0 | BB79: 0 | BC79: 0 | BD79: 0 | BE79: 0 | BF79: 0 | BG79: 0 | BH79: 0 | BI79: 0 | BJ79: 0 | BK79: 0 | BL79: 0 | BM79: 0 | BN79: 0
C80: 22 | D80: =IF(D131>0,D$52*Transmissivity^D131*D106,0) -> 0 | E80: 0 | F80: 0 | G80: 0 | H80: 0 | I80: 0 | J80: 0 | K80: 0 | L80: 0 | M80: 0 | N80: 0 | O80: 0 | P80: 0 | Q80: 0 | R80: 0 | S80: 0 | T80: 0 | U80: 0 | V80: 0 | W80: 0 | X80: 0 | Y80: 0 | Z80: 0 | AA80: 0 | AB80: 0 | AC80: 0 | AD80: 0 | AE80: 0 | AF80: 0 | AG80: 0 | AH80: 0 | AJ80: 0 | AK80: 0 | AL80: 0 | AM80: 0 | AN80: 0 | AO80: 0 | AP80: 0 | AQ80: 0 | AR80: 0 | AS80: 0 | AT80: 0 | AU80: 0 | AV80: 0 | AW80: 0 | AX80: 0 | AY80: 0 | AZ80: 0 | BA80: 0 | BB80: 0 | BC80: 0 | BD80: 0 | BE80: 0 | BF80: 0 | BG80: 0 | BH80: 0 | BI80: 0 | BJ80: 0 | BK80: 0 | BL80: 0 | BM80: 0 | BN80: 0
C81: 23 | D81: =IF(D132>0,D$52*Transmissivity^D132*D107,0) -> 0 | E81: 0 | F81: 0 | G81: 0 | H81: 0 | I81: 0 | J81: 0 | K81: 0 | L81: 0 | M81: 0 | N81: 0 | O81: 0 | P81: 0 | Q81: 0 | R81: 0 | S81: 0 | T81: 0 | U81: 0 | V81: 0 | W81: 0 | X81: 0 | Y81: 0 | Z81: 0 | AA81: 0 | AB81: 0 | AC81: 0 | AD81: 0 | AE81: 0 | AF81: 0 | AG81: 0 | AH81: 0 | AJ81: 0 | AK81: 0 | AL81: 0 | AM81: 0 | AN81: 0 | AO81: 0 | AP81: 0 | AQ81: 0 | AR81: 0 | AS81: 0 | AT81: 0 | AU81: 0 | AV81: 0 | AW81: 0 | AX81: 0 | AY81: 0 | AZ81: 0 | BA81: 0 | BB81: 0 | BC81: 0 | BD81: 0 | BE81: 0 | BF81: 0 | BG81: 0 | BH81: 0 | BI81: 0 | BJ81: 0 | BK81: 0 | BL81: 0 | BM81: 0 | BN81: 0
C82: 24 | D82: =IF(D133>0,D$52*Transmissivity^D133*D108,0) -> 0 | E82: 0 | F82: 0 | G82: 0 | H82: 0 | I82: 0 | J82: 0 | K82: 0 | L82: 0 | M82: 0 | N82: 0 | O82: 0 | P82: 0 | Q82: 0 | R82: 0 | S82: 0 | T82: 0 | U82: 0 | V82: 0 | W82: 0 | X82: 0 | Y82: 0 | Z82: 0 | AA82: 0 | AB82: 0 | AC82: 0 | AD82: 0 | AE82: 0 | AF82: 0 | AG82: 0 | AH82: 0 | AJ82: 0 | AK82: 0 | AL82: 0 | AM82: 0 | AN82: 0 | AO82: 0 | AP82: 0 | AQ82: 0 | AR82: 0 | AS82: 0 | AT82: 0 | AU82: 0 | AV82: 0 | AW82: 0 | AX82: 0 | AY82: 0 | AZ82: 0 | BA82: 0 | BB82: 0 | BC82: 0 | BD82: 0 | BE82: 0 | BF82: 0 | BG82: 0 | BH82: 0 | BI82: 0 | BJ82: 0 | BK82: 0 | BL82: 0 | BM82: 0 | BN82: 0 | BO82: For the Whole Month
AI83: Daily Integral | AJ83: =SUM(AJ59:AJ82)/1000000 -> 1.300659252 | AK83: 1.312652203 | AL83: 1.325712436 | AM83: 1.3398543 | AN83: 1.355093141 | AO83: 1.371445276 | AP83: 1.388927972 | AQ83: 1.407559412 | AR83: 1.427358677 | AS83: 1.448345705 | AT83: 1.470541268 | AU83: 1.493966936 | AV83: 1.51864504 | AW83: 1.54459864 | AX83: 1.571851484 | AY83: 1.60042797 | AZ83: 1.630353101 | BA83: 1.661652442 | BB83: 1.694352072 | BC83: 1.728478535 | BD83: 1.764058782 | BE83: 1.801120116 | BF83: 1.839690128 | BG83: 1.879796626 | BH83: 1.921467566 | BI83: 1.96473097 | BJ83: 2.00961484 | BK83: 2.056147066 | BL83: 2.104355323 | BM83: 2.154266966 | BN83: 2.205908917 | BP83: =SUM(AJ83:BN83) -> 51.29363316
B84: COS_theta | C84: Hour v
C85: 1 | D85: =(SIN(D$53*PI()/180)*SIN(Latitude*PI()/180)*COS(D$53*PI()/180))-(SIN(D$53*PI()/180)*COS(Latitude*PI()/180)*SIN(Slope*PI()/180)*COS(Aspect*PI()/180))+(COS(D$53*PI()/180)*COS(Latitude*PI()/180)*COS(Slope*PI()/180)*COS(((12-$C86)*15)*PI()/180))+(COS(D$53*PI()/180)*SIN(Latitude*PI()/180)*SIN(Slope*PI()/180)*COS(Aspect*PI()/180)*COS(((12-$C86)*15)*PI()/180))+(COS(D$53*PI()/180)*SIN(Slope*PI()/180)*SIN(Aspect*PI()/180)*SIN(((12-$C86)*15)*PI()/180)) -> -0.8229259184 | E85: =(SIN(E$53*PI()/180)*SIN(Latitude*PI()/180)*COS(E$53*PI()/180))-(SIN(E$53*PI()/180)*COS(Latitude*PI()/180)*SIN(Slope*PI()/180)*COS(Aspect*PI()/180))+(COS(E$53*PI()/180)*COS(Latitude*PI()/180)*COS(Slope*PI()/180)*COS(((12-$C86)*15)*PI()/180))+(COS(E$53*PI()/180)*SIN(Latitude*PI()/180)*SIN(Slope*PI()/180)*COS(Aspect*PI()/180)*COS(((12-$C86)*15)*PI()/180))+(COS(E$53*PI()/180)*SIN(Slope*PI()/180)*SIN(Aspect*PI()/180)*SIN(((12-$C86)*15)*PI()/180)) -> -0.8225853483 | F85: =(SIN(F$53*PI()/180)*SIN(Latitude*PI()/180)*COS(F$53*PI()/180))-(SIN(F$53*PI()/180)*COS(Latitude*PI()/180)*SIN(Slope*PI()/180)*COS(Aspect*PI()/180))+(COS(F$53*PI()/180)*COS(Latitude*PI()/180)*COS(Slope*PI()/180)*COS(((12-$C86)*15)*PI()/180))+(COS(F$53*PI()/180)*SIN(Latitude*PI()/180)*SIN(Slope*PI()/180)*COS(Aspect*PI()/180)*COS(((12-$C86)*15)*PI()/180))+(COS(F$53*PI()/180)*SIN(Slope*PI()/180)*SIN(Aspect*PI()/180)*SIN(((12-$C86)*15)*PI()/180)) -> -0.8222126673 | G85: =(SIN(G$53*PI()/180)*SIN(Latitude*PI()/180)*COS(G$53*PI()/180))-(SIN(G$53*PI()/180)*COS(Latitude*PI()/180)*SIN(Slope*PI()/180)*COS(Aspect*PI()/180))+(COS(G$53*PI()/180)*COS(Latitude*PI()/180)*COS(Slope*PI()/180)*COS(((12-$C86)*15)*PI()/180))+(COS(G$53*PI()/180)*SIN(Latitude*PI()/180)*SIN(Slope*PI()/180)*COS(Aspect*PI()/180)*COS(((12-$C86)*15)*PI()/180))+(COS(G$53*PI()/180)*SIN(Slope*PI()/180)*SIN(Aspect*PI()/180)*SIN(((12-$C86)*15)*PI()/180)) -> -0.8218071324 | H85: =(SIN(H$53*PI()/180)*SIN(Latitude*PI()/180)*COS(H$53*PI()/180))-(SIN(H$53*PI()/180)*COS(Latitude*PI()/180)*SIN(Slope*PI()/180)*COS(Aspect*PI()/180))+(COS(H$53*PI()/180)*COS(Latitude*PI()/180)*COS(Slope*PI()/180)*COS(((12-$C86)*15)*PI()/180))+(COS(H$53*PI()/180)*SIN(Latitude*PI()/180)*SIN(Slope*PI()/180)*COS(Aspect*PI()/180)*COS(((12-$C86)*15)*PI()/180))+(COS(H$53*PI()/180)*SIN(Slope*PI()/180)*SIN(Aspect*PI()/180)*SIN(((12-$C86)*15)*PI()/180)) -> -0.8213679508 | I85: =(SIN(I$53*PI()/180)*SIN(Latitude*PI()/180)*COS(I$53*PI()/180))-(SIN(I$53*PI()/180)*COS(Latitude*PI()/180)*SIN(Slope*PI()/180)*COS(Aspect*PI()/180))+(COS(I$53*PI()/180)*COS(Latitude*PI()/180)*COS(Slope*PI()/180)*COS(((12-$C86)*15)*PI()/180))+(COS(I$53*PI()/180)*SIN(Latitude*PI()/180)*SIN(Slope*PI()/180)*COS(Aspect*PI()/180)*COS(((12-$C86)*15)*PI()/180))+(COS(I$53*PI()/180)*SIN(Slope*PI()/180)*SIN(Aspect*PI()/180)*SIN(((12-$C86)*15)*PI()/180)) -> -0.820894282 | J85: =(SIN(J$53*PI()/180)*SIN(Latitude*PI()/180)*COS(J$53*PI()/180))-(SIN(J$53*PI()/180)*COS(Latitude*PI()/180)*SIN(Slope*PI()/180)*COS(Aspect*PI()/180))+(COS(J$53*PI()/180)*COS(Latitude*PI()/180)*COS(Slope*PI()/180)*COS(((12-$C86)*15)*PI()/180))+(COS(J$53*PI()/180)*SIN(Latitude*PI()/180)*SIN(Slope*PI()/180)*COS(Aspect*PI()/180)*COS(((12-$C86)*15)*PI()/180))+(COS(J$53*PI()/180)*SIN(Slope*PI()/180)*SIN(Aspect*PI()/180)*SIN(((12-$C86)*15)*PI()/180)) -> -0.8203852401 | K85: =(SIN(K$53*PI()/180)*SIN(Latitude*PI()/180)*COS(K$53*PI()/180))-(SIN(K$53*PI()/180)*COS(Latitude*PI()/180)*SIN(Slope*PI()/180)*COS(Aspect*PI()/180))+(COS(K$53*PI()/180)*COS(Latitude*PI()/180)*COS(Slope*PI()/180)*COS(((12-$C86)*15)*PI()/180))+(COS(K$53*PI()/180)*SIN(Latitude*PI()/180)*SIN(Slope*PI()/180)*COS(Aspect*PI()/180)*COS(((12-$C86)*15)*PI()/180))+(COS(K$53*PI()/180)*SIN(Slope*PI()/180)*SIN(Aspect*PI()/180)*SIN(((12-$C86)*15)*PI()/180)) -> -0.8198398953 | L85: =(SIN(L$53*PI()/180)*SIN(Latitude*PI()/180)*COS(L$53*PI()/180))-(SIN(L$53*PI()/180)*COS(Latitude*PI()/180)*SIN(Slope*PI()/180)*COS(Aspect*PI()/180))+(COS(L$53*PI()/180)*COS(Latitude*PI()/180)*COS(Slope*PI()/180)*COS(((12-$C86)*15)*PI()/180))+(COS(L$53*PI()/180)*SIN(Latitude*PI()/180)*SIN(Slope*PI()/180)*COS(Aspect*PI()/180)*COS(((12-$C86)*15)*PI()/180))+(COS(L$53*PI()/180)*SIN(Slope*PI()/180)*SIN(Aspect*PI()/180)*SIN(((12-$C86)*15)*PI()/180)) -> -0.8192572769 | M85: =(SIN(M$53*PI()/180)*SIN(Latitude*PI()/180)*COS(M$53*PI()/180))-(SIN(M$53*PI()/180)*COS(Latitude*PI()/180)*SIN(Slope*PI()/180)*COS(Aspect*PI()/180))+(COS(M$53*PI()/180)*COS(Latitude*PI()/180)*COS(Slope*PI()/180)*COS(((12-$C86)*15)*PI()/180))+(COS(M$53*PI()/180)*SIN(Latitude*PI()/180)*SIN(Slope*PI()/180)*COS(Aspect*PI()/180)*COS(((12-$C86)*15)*PI()/180))+(COS(M$53*PI()/180)*SIN(Slope*PI()/180)*SIN(Aspect*PI()/180)*SIN(((12-$C86)*15)*PI()/180)) -> -0.8186363754 | N85: =(SIN(N$53*PI()/180)*SIN(Latitude*PI()/180)*COS(N$53*PI()/180))-(SIN(N$53*PI()/180)*COS(Latitude*PI()/180)*SIN(Slope*PI()/180)*COS(Aspect*PI()/180))+(COS(N$53*PI()/180)*COS(Latitude*PI()/180)*COS(Slope*PI()/180)*COS(((12-$C86)*15)*PI()/180))+(COS(N$53*PI()/180)*SIN(Latitude*PI()/180)*SIN(Slope*PI()/180)*COS(Aspect*PI()/180)*COS(((12-$C86)*15)*PI()/180))+(COS(N$53*PI()/180)*SIN(Slope*PI()/180)*SIN(Aspect*PI()/180)*SIN(((12-$C86)*15)*PI()/180)) -> -0.8179761447 | O85: =(SIN(O$53*PI()/180)*SIN(Latitude*PI()/180)*COS(O$53*PI()/180))-(SIN(O$53*PI()/180)*COS(Latitude*PI()/180)*SIN(Slope*PI()/180)*COS(Aspect*PI()/180))+(COS(O$53*PI()/180)*COS(Latitude*PI()/180)*COS(Slope*PI()/180)*COS(((12-$C86)*15)*PI()/180))+(COS(O$53*PI()/180)*SIN(Latitude*PI()/180)*SIN(Slope*PI()/180)*COS(Aspect*PI()/180)*COS(((12-$C86)*15)*PI()/180))+(COS(O$53*PI()/180)*SIN(Slope*PI()/180)*SIN(Aspect*PI()/180)*SIN(((12-$C86)*15)*PI()/180)) -> -0.8172755054 | P85: =(SIN(P$53*PI()/180)*SIN(Latitude*PI()/180)*COS(P$53*PI()/180))-(SIN(P$53*PI()/180)*COS(Latitude*PI()/180)*SIN(Slope*PI()/180)*COS(Aspect*PI()/180))+(COS(P$53*PI()/180)*COS(Latitude*PI()/180)*COS(Slope*PI()/180)*COS(((12-$C86)*15)*PI()/180))+(COS(P$53*PI()/180)*SIN(Latitude*PI()/180)*SIN(Slope*PI()/180)*COS(Aspect*PI()/180)*COS(((12-$C86)*15)*PI()/180))+(COS(P$53*PI()/180)*SIN(Slope*PI()/180)*SIN(Aspect*PI()/180)*SIN(((12-$C86)*15)*PI()/180)) -> -0.8165333469 | Q85: =(SIN(Q$53*PI()/180)*SIN(Latitude*PI()/180)*COS(Q$53*PI()/180))-(SIN(Q$53*PI()/180)*COS(Latitude*PI()/180)*SIN(Slope*PI()/180)*COS(Aspect*PI()/180))+(COS(Q$53*PI()/180)*COS(Latitude*PI()/180)*COS(Slope*PI()/180)*COS(((12-$C86)*15)*PI()/180))+(COS(Q$53*PI()/180)*SIN(Latitude*PI()/180)*SIN(Slope*PI()/180)*COS(Aspect*PI()/180)*COS(((12-$C86)*15)*PI()/180))+(COS(Q$53*PI()/180)*SIN(Slope*PI()/180)*SIN(Aspect*PI()/180)*SIN(((12-$C86)*15)*PI()/180)) -> -0.8157485304 | R85: =(SIN(R$53*PI()/180)*SIN(Latitude*PI()/180)*COS(R$53*PI()/180))-(SIN(R$53*PI()/180)*COS(Latitude*PI()/180)*SIN(Slope*PI()/180)*COS(Aspect*PI()/180))+(COS(R$53*PI()/180)*COS(Latitude*PI()/180)*COS(Slope*PI()/180)*COS(((12-$C86)*15)*PI()/180))+(COS(R$53*PI()/180)*SIN(Latitude*PI()/180)*SIN(Slope*PI()/180)*COS(Aspect*PI()/180)*COS(((12-$C86)*15)*PI()/180))+(COS(R$53*PI()/180)*SIN(Slope*PI()/180)*SIN(Aspect*PI()/180)*SIN(((12-$C86)*15)*PI()/180)) -> -0.814919892 | S85: =(SIN(S$53*PI()/180)*SIN(Latitude*PI()/180)*COS(S$53*PI()/180))-(SIN(S$53*PI()/180)*COS(Latitude*PI()/180)*SIN(Slope*PI()/180)*COS(Aspect*PI()/180))+(COS(S$53*PI()/180)*COS(Latitude*PI()/180)*COS(Slope*PI()/180)*COS(((12-$C86)*15)*PI()/180))+(COS(S$53*PI()/180)*SIN(Latitude*PI()/180)*SIN(Slope*PI()/180)*COS(Aspect*PI()/180)*COS(((12-$C86)*15)*PI()/180))+(COS(S$53*PI()/180)*SIN(Slope*PI()/180)*SIN(Aspect*PI()/180)*SIN(((12-$C86)*15)*PI()/180)) -> -0.8140462455 | T85: =(SIN(T$53*PI()/180)*SIN(Latitude*PI()/180)*COS(T$53*PI()/180))-(SIN(T$53*PI()/180)*COS(Latitude*PI()/180)*SIN(Slope*PI()/180)*COS(Aspect*PI()/180))+(COS(T$53*PI()/180)*COS(Latitude*PI()/180)*COS(Slope*PI()/180)*COS(((12-$C86)*15)*PI()/180))+(COS(T$53*PI()/180)*SIN(Latitude*PI()/180)*SIN(Slope*PI()/180)*COS(Aspect*PI()/180)*COS(((12-$C86)*15)*PI()/180))+(COS(T$53*PI()/180)*SIN(Slope*PI()/180)*SIN(Aspect*PI()/180)*SIN(((12-$C86)*15)*PI()/180)) -> -0.8131263854 | U85: =(SIN(U$53*PI()/180)*SIN(Latitude*PI()/180)*COS(U$53*PI()/180))-(SIN(U$53*PI()/180)*COS(Latitude*PI()/180)*SIN(Slope*PI()/180)*COS(Aspect*PI()/180))+(COS(U$53*PI()/180)*COS(Latitude*PI()/180)*COS(Slope*PI()/180)*COS(((12-$C86)*15)*PI()/180))+(COS(U$53*PI()/180)*SIN(Latitude*PI()/180)*SIN(Slope*PI()/180)*COS(Aspect*PI()/180)*COS(((12-$C86)*15)*PI()/180))+(COS(U$53*PI()/180)*SIN(Slope*PI()/180)*SIN(Aspect*PI()/180)*SIN(((12-$C86)*15)*PI()/180)) -> -0.8121590904 | V85: =(SIN(V$53*PI()/180)*SIN(Latitude*PI()/180)*COS(V$53*PI()/180))-(SIN(V$53*PI()/180)*COS(Latitude*PI()/180)*SIN(Slope*PI()/180)*COS(Aspect*PI()/180))+(COS(V$53*PI()/180)*COS(Latitude*PI()/180)*COS(Slope*PI()/180)*COS(((12-$C86)*15)*PI()/180))+(COS(V$53*PI()/180)*SIN(Latitude*PI()/180)*SIN(Slope*PI()/180)*COS(Aspect*PI()/180)*COS(((12-$C86)*15)*PI()/180))+(COS(V$53*PI()/180)*SIN(Slope*PI()/180)*SIN(Aspect*PI()/180)*SIN(((12-$C86)*15)*PI()/180)) -> -0.8111431262 | W85: =(SIN(W$53*PI()/180)*SIN(Latitude*PI()/180)*COS(W$53*PI()/180))-(SIN(W$53*PI()/180)*COS(Latitude*PI()/180)*SIN(Slope*PI()/180)*COS(Aspect*PI()/180))+(COS(W$53*PI()/180)*COS(Latitude*PI()/180)*COS(Slope*PI()/180)*COS(((12-$C86)*15)*PI()/180))+(COS(W$53*PI()/180)*SIN(Latitude*PI()/180)*SIN(Slope*PI()/180)*COS(Aspect*PI()/180)*COS(((12-$C86)*15)*PI()/180))+(COS(W$53*PI()/180)*SIN(Slope*PI()/180)*SIN(Aspect*PI()/180)*SIN(((12-$C86)*15)*PI()/180)) -> -0.8100772489 | X85: =(SIN(X$53*PI()/180)*SIN(Latitude*PI()/180)*COS(X$53*PI()/180))-(SIN(X$53*PI()/180)*COS(Latitude*PI()/180)*SIN(Slope*PI()/180)*COS(Aspect*PI()/180))+(COS(X$53*PI()/180)*COS(Latitude*PI()/180)*COS(Slope*PI()/180)*COS(((12-$C86)*15)*PI()/180))+(COS(X$53*PI()/180)*SIN(Latitude*PI()/180)*SIN(Slope*PI()/180)*COS(Aspect*PI()/180)*COS(((12-$C86)*15)*PI()/180))+(COS(X$53*PI()/180)*SIN(Slope*PI()/180)*SIN(Aspect*PI()/180)*SIN(((12-$C86)*15)*PI()/180)) -> -0.8089602086 | Y85: =(SIN(Y$53*PI()/180)*SIN(Latitude*PI()/180)*COS(Y$53*PI()/180))-(SIN(Y$53*PI()/180)*COS(Latitude*PI()/180)*SIN(Slope*PI()/180)*COS(Aspect*PI()/180))+(COS(Y$53*PI()/180)*COS(Latitude*PI()/180)*COS(Slope*PI()/180)*COS(((12-$C86)*15)*PI()/180))+(COS(Y$53*PI()/180)*SIN(Latitude*PI()/180)*SIN(Slope*PI()/180)*COS(Aspect*PI()/180)*COS(((12-$C86)*15)*PI()/180))+(COS(Y$53*PI()/180)*SIN(Slope*PI()/180)*SIN(Aspect*PI()/180)*SIN(((12-$C86)*15)*PI()/180)) -> -0.8077907525 | Z85: =(SIN(Z$53*PI()/180)*SIN(Latitude*PI()/180)*COS(Z$53*PI()/180))-(SIN(Z$53*PI()/180)*COS(Latitude*PI()/180)*SIN(Slope*PI()/180)*COS(Aspect*PI()/180))+(COS(Z$53*PI()/180)*COS(Latitude*PI()/180)*COS(Slope*PI()/180)*COS(((12-$C86)*15)*PI()/180))+(COS(Z$53*PI()/180)*SIN(Latitude*PI()/180)*SIN(Slope*PI()/180)*COS(Aspect*PI()/180)*COS(((12-$C86)*15)*PI()/180))+(COS(Z$53*PI()/180)*SIN(Slope*PI()/180)*SIN(Aspect*PI()/180)*SIN(((12-$C86)*15)*PI()/180)) -> -0.8065676283 | AA85: =(SIN(AA$53*PI()/180)*SIN(Latitude*PI()/180)*COS(AA$53*PI()/180))-(SIN(AA$53*PI()/180)*COS(Latitude*PI()/180)*SIN(Slope*PI()/180)*COS(Aspect*PI()/180))+(COS(AA$53*PI()/180)*COS(Latitude*PI()/180)*COS(Slope*PI()/180)*COS(((12-$C86)*15)*PI()/180))+(COS(AA$53*PI()/180)*SIN(Latitude*PI()/180)*SIN(Slope*PI()/180)*COS(Aspect*PI()/180)*COS(((12-$C86)*15)*PI()/180))+(COS(AA$53*PI()/180)*SIN(Slope*PI()/180)*SIN(Aspect*PI()/180)*SIN(((12-$C86)*15)*PI()/180)) -> -0.8052895881 | AB85: =(SIN(AB$53*PI()/180)*SIN(Latitude*PI()/180)*COS(AB$53*PI()/180))-(SIN(AB$53*PI()/180)*COS(Latitude*PI()/180)*SIN(Slope*PI()/180)*COS(Aspect*PI()/180))+(COS(AB$53*PI()/180)*COS(Latitude*PI()/180)*COS(Slope*PI()/180)*COS(((12-$C86)*15)*PI()/180))+(COS(AB$53*PI()/180)*SIN(Latitude*PI()/180)*SIN(Slope*PI()/180)*COS(Aspect*PI()/180)*COS(((12-$C86)*15)*PI()/180))+(COS(AB$53*PI()/180)*SIN(Slope*PI()/180)*SIN(Aspect*PI()/180)*SIN(((12-$C86)*15)*PI()/180)) -> -0.8039553912 | AC85: =(SIN(AC$53*PI()/180)*SIN(Latitude*PI()/180)*COS(AC$53*PI()/180))-(SIN(AC$53*PI()/180)*COS(Latitude*PI()/180)*SIN(Slope*PI()/180)*COS(Aspect*PI()/180))+(COS(AC$53*PI()/180)*COS(Latitude*PI()/180)*COS(Slope*PI()/180)*COS(((12-$C86)*15)*PI()/180))+(COS(AC$53*PI()/180)*SIN(Latitude*PI()/180)*SIN(Slope*PI()/180)*COS(Aspect*PI()/180)*COS(((12-$C86)*15)*PI()/180))+(COS(AC$53*PI()/180)*SIN(Slope*PI()/180)*SIN(Aspect*PI()/180)*SIN(((12-$C86)*15)*PI()/180)) -> -0.8025638085 | AD85: =(SIN(AD$53*PI()/180)*SIN(Latitude*PI()/180)*COS(AD$53*PI()/180))-(SIN(AD$53*PI()/180)*COS(Latitude*PI()/180)*SIN(Slope*PI()/180)*COS(Aspect*PI()/180))+(COS(AD$53*PI()/180)*COS(Latitude*PI()/180)*COS(Slope*PI()/180)*COS(((12-$C86)*15)*PI()/180))+(COS(AD$53*PI()/180)*SIN(Latitude*PI()/180)*SIN(Slope*PI()/180)*COS(Aspect*PI()/180)*COS(((12-$C86)*15)*PI()/180))+(COS(AD$53*PI()/180)*SIN(Slope*PI()/180)*SIN(Aspect*PI()/180)*SIN(((12-$C86)*15)*PI()/180)) -> -0.801113625 | AE85: =(SIN(AE$53*PI()/180)*SIN(Latitude*PI()/180)*COS(AE$53*PI()/180))-(SIN(AE$53*PI()/180)*COS(Latitude*PI()/180)*SIN(Slope*PI()/180)*COS(Aspect*PI()/180))+(COS(AE$53*PI()/180)*COS(Latitude*PI()/180)*COS(Slope*PI()/180)*COS(((12-$C86)*15)*PI()/180))+(COS(AE$53*PI()/180)*SIN(Latitude*PI()/180)*SIN(Slope*PI()/180)*COS(Aspect*PI()/180)*COS(((12-$C86)*15)*PI()/180))+(COS(AE$53*PI()/180)*SIN(Slope*PI()/180)*SIN(Aspect*PI()/180)*SIN(((12-$C86)*15)*PI()/180)) -> -0.7996036444 | AF85: =(SIN(AF$53*PI()/180)*SIN(Latitude*PI()/180)*COS(AF$53*PI()/180))-(SIN(AF$53*PI()/180)*COS(Latitude*PI()/180)*SIN(Slope*PI()/180)*COS(Aspect*PI()/180))+(COS(AF$53*PI()/180)*COS(Latitude*PI()/180)*COS(Slope*PI()/180)*COS(((12-$C86)*15)*PI()/180))+(COS(AF$53*PI()/180)*SIN(Latitude*PI()/180)*SIN(Slope*PI()/180)*COS(Aspect*PI()/180)*COS(((12-$C86)*15)*PI()/180))+(COS(AF$53*PI()/180)*SIN(Slope*PI()/180)*SIN(Aspect*PI()/180)*SIN(((12-$C86)*15)*PI()/180)) -> -0.7980326918 | AG85: =(SIN(AG$53*PI()/180)*SIN(Latitude*PI()/180)*COS(AG$53*PI()/180))-(SIN(AG$53*PI()/180)*COS(Latitude*PI()/180)*SIN(Slope*PI()/180)*COS(Aspect*PI()/180))+(COS(AG$53*PI()/180)*COS(Latitude*PI()/180)*COS(Slope*PI()/180)*COS(((12-$C86)*15)*PI()/180))+(COS(AG$53*PI()/180)*SIN(Latitude*PI()/180)*SIN(Slope*PI()/180)*COS(Aspect*PI()/180)*COS(((12-$C86)*15)*PI()/180))+(COS(AG$53*PI()/180)*SIN(Slope*PI()/180)*SIN(Aspect*PI()/180)*SIN(((12-$C86)*15)*PI()/180)) -> -0.7963996177 | AH85: =(SIN(AH$53*PI()/180)*SIN(Latitude*PI()/180)*COS(AH$53*PI()/180))-(SIN(AH$53*PI()/180)*COS(Latitude*PI()/180)*SIN(Slope*PI()/180)*COS(Aspect*PI()/180))+(COS(AH$53*PI()/180)*COS(Latitude*PI()/180)*COS(Slope*PI()/180)*COS(((12-$C86)*15)*PI()/180))+(COS(AH$53*PI()/180)*SIN(Latitude*PI()/180)*SIN(Slope*PI()/180)*COS(Aspect*PI()/180)*COS(((12-$C86)*15)*PI()/180))+(COS(AH$53*PI()/180)*SIN(Slope*PI()/180)*SIN(Aspect*PI()/180)*SIN(((12-$C86)*15)*PI()/180)) -> -0.7947033014
C86: 2 | D86: -0.7179574035 | E86: -0.7175535578 | F86: -0.7171125377 | G86: -0.716633678 | H86: -0.7161162696 | I86: -0.7155595615 | J86: -0.7149627622 | K86: -0.7143250425 | L86: -0.7136455373 | M86: -0.7129233479 | N86: -0.7121575446 | O86: -0.7113471688 | P86: -0.710491236 | Q86: -0.7095887382 | R86: -0.7086386469 | S86: -0.7076399158 | T86: -0.7065914838 | U86: -0.7054922779 | V86: -0.7043412163 | W86: -0.7031372116 | X86: -0.7018791738 | Y86: -0.7005660139 | Z86: -0.6991966466 | AA86: -0.697769994 | AB86: -0.6962849887 | AC86: -0.6947405773 | AD86: -0.6931357237 | AE86: -0.6914694123 | AF86: -0.6897406515 | AG86: -0.6879484769 | AH86: -0.6860919547
C87: 3 | D87: -0.5811597716 | E87: -0.5806734634 | F87: -0.580143382 | G87: -0.5795689637 | H87: -0.5789496083 | I87: -0.5782846809 | J87: -0.5775735141 | K87: -0.5768154091 | L87: -0.5760096385 | M87: -0.5751554484 | N87: -0.57425206 | O87: -0.5732986728 | P87: -0.5722944664 | Q87: -0.5712386034 | R87: -0.5701302317 | S87: -0.5689684873 | T87: -0.567752497 | U87: -0.5664813814 | V87: -0.5651542575 | W87: -0.5637702416 | X87: -0.5623284524 | Y87: -0.5608280141 | Z87: -0.5592680589 | AA87: -0.5576477308 | AB87: -0.5559661881 | AC87: -0.5542226066 | AD87: -0.552416183 | AE87: -0.5505461373 | AF87: -0.5486117168 | AG87: -0.5466121984 | AH87: -0.5445468919
C88: 4 | D88: -0.4218555552 | E88: -0.4212732174 | F88: -0.4206394219 | G88: -0.4199537232 | H88: -0.4192156479 | I88: -0.4184246968 | J88: -0.417580346 | K88: -0.4166820493 | L88: -0.4157292397 | M88: -0.4147213313 | N88: -0.4136577218 | O88: -0.4125377943 | P88: -0.4113609198 | Q88: -0.4101264592 | R88: -0.4088337659 | S88: -0.4074821884 | T88: -0.4060710724 | U88: -0.4045997638 | V88: -0.403067611 | W88: -0.4014739676 | X88: -0.3998181954 | Y88: -0.3980996667 | Z88: -0.3963177673 | AA88: -0.3944718994 | AB88: -0.392561484 | AC88: -0.390585964 | AD88: -0.388544807 | AE88: -0.3864375078 | AF88: -0.3842635916 | AG88: -0.3820226162 | AH88: -0.3797141751
C89: 5 | D89: -0.2509010734 | E89: -0.2502156832 | F89: -0.2494705888 | G89: -0.2486654714 | H89: -0.247799994 | I89: -0.2468738026 | J89: -0.245886528 | K89: -0.2448377871 | L89: -0.2437271851 | M89: -0.2425543167 | N89: -0.2413187688 | O89: -0.2400201215 | P89: -0.2386579512 | Q89: -0.2372318318 | R89: -0.2357413371 | S89: -0.2341860436 | T89: -0.232565532 | U89: -0.2308793898 | V89: -0.2291272138 | W89: -0.2273086125 | X89: -0.2254232081 | Y89: -0.2234706396 | Z89: -0.2214505648 | AA89: -0.2193626628 | AB89: -0.2172066368 | AC89: -0.2149822161 | AD89: -0.2126891592 | AE89: -0.2103272557 | AF89: -0.2078963288 | AG89: -0.2053962381 | AH89: -0.2028268816
C90: 6 | D90: -0.07994659156 | E90: -0.07915814895 | F90: -0.07830175559 | G90: -0.07737721961 | H90: -0.0763843401 | I90: -0.07532290852 | J90: -0.07419271 | K90: -0.07299352493 | L90: -0.07172513045 | M90: -0.07038730214 | N90: -0.06897981571 | O90: -0.06750244877 | P90: -0.06595498265 | Q90: -0.06433720434 | R90: -0.06264890839 | S90: -0.06088989889 | T90: -0.05905999157 | U90: -0.05715901578 | V90: -0.0551868167 | W90: -0.05314325736 | X90: -0.05102822089 | Y90: -0.04884161262 | Z90: -0.0465833623 | AA90: -0.04425342626 | AB90: -0.04185178957 | AC90: -0.03937846828 | AD90: -0.03683351149 | AE90: -0.03421700353 | AF90: -0.03152906605 | AG90: -0.02876986009 | AH90: -0.02593958811
C91: 7 | D91: 0.07935762484 | E91: 0.08024209701 | F91: 0.08120220447 | G91: 0.08223802088 | H91: 0.08334962025 | I91: 0.08453707567 | J91: 0.08580045805 | K91: 0.0871398348 | L91: 0.0885552684 | M91: 0.09004681492 | N91: 0.09161452249 | O91: 0.09325842971 | P91: 0.09497856401 | Q91: 0.09677493992 | R91: 0.0986475574 | S91: 0.1005964 | T91: 0.102621433 | U91: 0.1047226018 | V91: 0.1068998298 | W91: 0.1091530166 | X91: 0.1114820362 | Y91: 0.1138867348 | Z91: 0.1163669293 | AA91: 0.1189224052 | AB91: 0.1215529146 | AC91: 0.1242581744 | AD91: 0.1270378645 | AE91: 0.129891626 | AF91: 0.1328190592 | AG91: 0.1358197222 | AH91: 0.1388931287
C92: 8 | D92: 0.2161552567 | E92: 0.2171221914 | F92: 0.2181713601 | G92: 0.2193027352 | H92: 0.2205162817 | I92: 0.2218119562 | J92: 0.2231897061 | K92: 0.2246494682 | L92: 0.2261911672 | M92: 0.2278147145 | N92: 0.2295200071 | O92: 0.2313069257 | P92: 0.2331753335 | Q92: 0.2351250747 | R92: 0.2371559726 | S92: 0.2392678286 | T92: 0.2414604198 | U92: 0.2437334983 | V92: 0.2460867886 | W92: 0.2485199866 | X92: 0.2510327576 | Y92: 0.2536247346 | Z92: 0.256295517 | AA92: 0.2590446683 | AB92: 0.2618717151 | AC92: 0.264776145 | AD92: 0.2677574052 | AE92: 0.2708149009 | AF92: 0.2739479939 | AG92: 0.2771560006 | AH92: 0.2804381915
C93: 9 | D93: 0.3211237716 | E93: 0.3221539819 | F93: 0.3232714898 | G93: 0.3244761896 | H93: 0.3257679628 | I93: 0.3271466768 | J93: 0.3286121841 | K93: 0.330164321 | L93: 0.3318029068 | M93: 0.3335277419 | N93: 0.3353386072 | O93: 0.3372352623 | P93: 0.3392174444 | Q93: 0.3412848669 | R93: 0.3434372177 | S93: 0.3456741582 | T93: 0.3479953214 | U93: 0.3504003108 | V93: 0.3528886985 | W93: 0.3554600239 | X93: 0.3581137923 | Y93: 0.3608494732 | Z93: 0.3636664987 | AA93: 0.3665642624 | AB93: 0.3695421177 | AC93: 0.3725993762 | AD93: 0.3757353066 | AE93: 0.378949133 | AF93: 0.3822400342 | AG93: 0.3856071415 | AH93: 0.3890495382
C94: 10 | D94: 0.3871097386 | E94: 0.3881797256 | F94: 0.3893401933 | G94: 0.390590987 | H94: 0.3919319355 | I94: 0.3933628503 | J94: 0.3948835241 | K94: 0.3964937304 | L94: 0.3981932218 | M94: 0.3999817291 | N94: 0.4018589601 | O94: 0.4038245985 | P94: 0.4058783021 | Q94: 0.4080197021 | R94: 0.4102484014 | S94: 0.4125639733 | T94: 0.4149659603 | U94: 0.4174538723 | V94: 0.4200271858 | W94: 0.4226853417 | X94: 0.4254277448 | Y94: 0.4282537617 | Z94: 0.4311627195 | AA94: 0.4341539049 | AB94: 0.4372265623 | AC94: 0.4403798929 | AD94: 0.443613053 | AE94: 0.4469251531 | AF94: 0.4503152566 | AG94: 0.4537823787 | AH94: 0.457325485
C95: 11 | D95: 0.4096163231 | E95: 0.4106998772 | F95: 0.4118749977 | G95: 0.4131415132 | H95: 0.4144992345 | I95: 0.415947954 | J95: 0.4174874441 | K95: 0.4191174567 | L95: 0.4208377219 | M95: 0.4226479466 | N95: 0.4245478137 | O95: 0.426536981 | P95: 0.4286150792 | Q95: 0.4307817116 | R95: 0.4330364519 | S95: 0.4353788436 | T95: 0.437808398 | U95: 0.4403245934 | V95: 0.4429268735 | W95: 0.4456146457 | X95: 0.4483872805 | Y95: 0.4512441092 | Z95: 0.4541844234 | AA95: 0.4572074732 | AB95: 0.4603124659 | AC95: 0.4634985649 | AD95: 0.4667648882 | AE95: 0.4701105076 | AF95: 0.4735344473 | AG95: 0.4770356825 | AH95: 0.480613139
C96: 12 | D96: 0.3871097386 | E96: 0.3881797256 | F96: 0.3893401933 | G96: 0.390590987 | H96: 0.3919319355 | I96: 0.3933628503 | J96: 0.3948835241 | K96: 0.3964937304 | L96: 0.3981932218 | M96: 0.3999817291 | N96: 0.4018589601 | O96: 0.4038245985 | P96: 0.4058783021 | Q96: 0.4080197021 | R96: 0.4102484014 | S96: 0.4125639733 | T96: 0.4149659603 | U96: 0.4174538723 | V96: 0.4200271858 | W96: 0.4226853417 | X96: 0.4254277448 | Y96: 0.4282537617 | Z96: 0.4311627195 | AA96: 0.4341539049 | AB96: 0.4372265623 | AC96: 0.4403798929 | AD96: 0.443613053 | AE96: 0.4469251531 | AF96: 0.4503152566 | AG96: 0.4537823787 | AH96: 0.457325485
C97: 13 | D97: 0.3211237716 | E97: 0.3221539819 | F97: 0.3232714898 | G97: 0.3244761896 | H97: 0.3257679628 | I97: 0.3271466768 | J97: 0.3286121841 | K97: 0.330164321 | L97: 0.3318029068 | M97: 0.3335277419 | N97: 0.3353386072 | O97: 0.3372352623 | P97: 0.3392174444 | Q97: 0.3412848669 | R97: 0.3434372177 | S97: 0.3456741582 | T97: 0.3479953214 | U97: 0.3504003108 | V97: 0.3528886985 | W97: 0.3554600239 | X97: 0.3581137923 | Y97: 0.3608494732 | Z97: 0.3636664987 | AA97: 0.3665642624 | AB97: 0.3695421177 | AC97: 0.3725993762 | AD97: 0.3757353066 | AE97: 0.378949133 | AF97: 0.3822400342 | AG97: 0.3856071415 | AH97: 0.3890495382
C98: 14 | D98: 0.2161552567 | E98: 0.2171221914 | F98: 0.2181713601 | G98: 0.2193027352 | H98: 0.2205162817 | I98: 0.2218119562 | J98: 0.2231897061 | K98: 0.2246494682 | L98: 0.2261911672 | M98: 0.2278147145 | N98: 0.2295200071 | O98: 0.2313069257 | P98: 0.2331753335 | Q98: 0.2351250747 | R98: 0.2371559726 | S98: 0.2392678286 | T98: 0.2414604198 | U98: 0.2437334983 | V98: 0.2460867886 | W98: 0.2485199866 | X98: 0.2510327576 | Y98: 0.2536247346 | Z98: 0.256295517 | AA98: 0.2590446683 | AB98: 0.2618717151 | AC98: 0.264776145 | AD98: 0.2677574052 | AE98: 0.2708149009 | AF98: 0.2739479939 | AG98: 0.2771560006 | AH98: 0.2804381915
C99: 15 | D99: 0.07935762484 | E99: 0.08024209701 | F99: 0.08120220447 | G99: 0.08223802088 | H99: 0.08334962025 | I99: 0.08453707567 | J99: 0.08580045805 | K99: 0.0871398348 | L99: 0.0885552684 | M99: 0.09004681492 | N99: 0.09161452249 | O99: 0.09325842971 | P99: 0.09497856401 | Q99: 0.09677493992 | R99: 0.0986475574 | S99: 0.1005964 | T99: 0.102621433 | U99: 0.1047226018 | V99: 0.1068998298 | W99: 0.1091530166 | X99: 0.1114820362 | Y99: 0.1138867348 | Z99: 0.1163669293 | AA99: 0.1189224052 | AB99: 0.1215529146 | AC99: 0.1242581744 | AD99: 0.1270378645 | AE99: 0.129891626 | AF99: 0.1328190592 | AG99: 0.1358197222 | AH99: 0.1388931287
C100: 16 | D100: -0.07994659156 | E100: -0.07915814895 | F100: -0.07830175559 | G100: -0.07737721961 | H100: -0.0763843401 | I100: -0.07532290852 | J100: -0.07419271 | K100: -0.07299352493 | L100: -0.07172513045 | M100: -0.07038730214 | N100: -0.06897981571 | O100: -0.06750244877 | P100: -0.06595498265 | Q100: -0.06433720434 | R100: -0.06264890839 | S100: -0.06088989889 | T100: -0.05905999157 | U100: -0.05715901578 | V100: -0.0551868167 | W100: -0.05314325736 | X100: -0.05102822089 | Y100: -0.04884161262 | Z100: -0.0465833623 | AA100: -0.04425342626 | AB100: -0.04185178957 | AC100: -0.03937846828 | AD100: -0.03683351149 | AE100: -0.03421700353 | AF100: -0.03152906605 | AG100: -0.02876986009 | AH100: -0.02593958811
C101: 17 | D101: -0.2509010734 | E101: -0.2502156832 | F101: -0.2494705888 | G101: -0.2486654714 | H101: -0.247799994 | I101: -0.2468738026 | J101: -0.245886528 | K101: -0.2448377871 | L101: -0.2437271851 | M101: -0.2425543167 | N101: -0.2413187688 | O101: -0.2400201215 | P101: -0.2386579512 | Q101: -0.2372318318 | R101: -0.2357413371 | S101: -0.2341860436 | T101: -0.232565532 | U101: -0.2308793898 | V101: -0.2291272138 | W101: -0.2273086125 | X101: -0.2254232081 | Y101: -0.2234706396 | Z101: -0.2214505648 | AA101: -0.2193626628 | AB101: -0.2172066368 | AC101: -0.2149822161 | AD101: -0.2126891592 | AE101: -0.2103272557 | AF101: -0.2078963288 | AG101: -0.2053962381 | AH101: -0.2028268816
C102: 18 | D102: -0.4218555552 | E102: -0.4212732174 | F102: -0.4206394219 | G102: -0.4199537232 | H102: -0.4192156479 | I102: -0.4184246968 | J102: -0.417580346 | K102: -0.4166820493 | L102: -0.4157292397 | M102: -0.4147213313 | N102: -0.4136577218 | O102: -0.4125377943 | P102: -0.4113609198 | Q102: -0.4101264592 | R102: -0.4088337659 | S102: -0.4074821884 | T102: -0.4060710724 | U102: -0.4045997638 | V102: -0.403067611 | W102: -0.4014739676 | X102: -0.3998181954 | Y102: -0.3980996667 | Z102: -0.3963177673 | AA102: -0.3944718994 | AB102: -0.392561484 | AC102: -0.390585964 | AD102: -0.388544807 | AE102: -0.3864375078 | AF102: -0.3842635916 | AG102: -0.3820226162 | AH102: -0.3797141751
C103: 19 | D103: -0.5811597716 | E103: -0.5806734634 | F103: -0.580143382 | G103: -0.5795689637 | H103: -0.5789496083 | I103: -0.5782846809 | J103: -0.5775735141 | K103: -0.5768154091 | L103: -0.5760096385 | M103: -0.5751554484 | N103: -0.57425206 | O103: -0.5732986728 | P103: -0.5722944664 | Q103: -0.5712386034 | R103: -0.5701302317 | S103: -0.5689684873 | T103: -0.567752497 | U103: -0.5664813814 | V103: -0.5651542575 | W103: -0.5637702416 | X103: -0.5623284524 | Y103: -0.5608280141 | Z103: -0.5592680589 | AA103: -0.5576477308 | AB103: -0.5559661881 | AC103: -0.5542226066 | AD103: -0.552416183 | AE103: -0.5505461373 | AF103: -0.5486117168 | AG103: -0.5466121984 | AH103: -0.5445468919
C104: 20 | D104: -0.7179574035 | E104: -0.7175535578 | F104: -0.7171125377 | G104: -0.716633678 | H104: -0.7161162696 | I104: -0.7155595615 | J104: -0.7149627622 | K104: -0.7143250425 | L104: -0.7136455373 | M104: -0.7129233479 | N104: -0.7121575446 | O104: -0.7113471688 | P104: -0.710491236 | Q104: -0.7095887382 | R104: -0.7086386469 | S104: -0.7076399158 | T104: -0.7065914838 | U104: -0.7054922779 | V104: -0.7043412163 | W104: -0.7031372116 | X104: -0.7018791738 | Y104: -0.7005660139 | Z104: -0.6991966466 | AA104: -0.697769994 | AB104: -0.6962849887 | AC104: -0.6947405773 | AD104: -0.6931357237 | AE104: -0.6914694123 | AF104: -0.6897406515 | AG104: -0.6879484769 | AH104: -0.6860919547
C105: 21 | D105: -0.8229259184 | E105: -0.8225853483 | F105: -0.8222126673 | G105: -0.8218071324 | H105: -0.8213679508 | I105: -0.820894282 | J105: -0.8203852401 | K105: -0.8198398953 | L105: -0.8192572769 | M105: -0.8186363754 | N105: -0.8179761447 | O105: -0.8172755054 | P105: -0.8165333469 | Q105: -0.8157485304 | R105: -0.814919892 | S105: -0.8140462455 | T105: -0.8131263854 | U105: -0.8121590904 | V105: -0.8111431262 | W105: -0.8100772489 | X105: -0.8089602086 | Y105: -0.8077907525 | Z105: -0.8065676283 | AA105: -0.8052895881 | AB105: -0.8039553912 | AC105: -0.8025638085 | AD105: -0.801113625 | AE105: -0.7996036444 | AF105: -0.7980326918 | AG105: -0.7963996177 | AH105: -0.7947033014
C106: 22 | D106: -0.8889118853 | E106: -0.888611092 | F106: -0.8882813708 | G106: -0.8879219298 | H106: -0.8875319235 | I106: -0.8871104556 | J106: -0.8866565802 | K106: -0.8861693047 | L106: -0.8856475919 | M106: -0.8850903625 | N106: -0.8844964977 | O106: -0.8838648416 | P106: -0.8831942045 | Q106: -0.8824833656 | R106: -0.8817310757 | S106: -0.8809360606 | T106: -0.8800970243 | U106: -0.8792126519 | V106: -0.8782816134 | W106: -0.8773025667 | X106: -0.8762741611 | Y106: -0.8751950409 | Z106: -0.8740638491 | AA106: -0.8728792305 | AB106: -0.8716398359 | AC106: -0.8703443252 | AD106: -0.8689913715 | AE106: -0.8675796645 | AF106: -0.8661079142 | AG106: -0.8645748549 | AH106: -0.8629792482
C107: 23 | D107: -0.9114184698 | E107: -0.9111312436 | F107: -0.9108161752 | G107: -0.9104724559 | H107: -0.9100992225 | I107: -0.9096955592 | J107: -0.9092605001 | K107: -0.908793031 | L107: -0.908292092 | M107: -0.90775658 | N107: -0.9071853513 | O107: -0.9065772241 | P107: -0.9059309817 | Q107: -0.9052453751 | R107: -0.9045191262 | S107: -0.9037509309 | T107: -0.902939462 | U107: -0.902083373 | V107: -0.9011813011 | W107: -0.9002318707 | X107: -0.8992336967 | Y107: -0.8981853885 | Z107: -0.897085553 | AA107: -0.8959327989 | AB107: -0.8947257395 | AC107: -0.8934629972 | AD107: -0.8921432067 | AE107: -0.890765019 | AF107: -0.8893271049 | AG107: -0.8878281587 | AH107: -0.8862669022
C108: 24 | D108: -0.9114184698 | E108: -0.9111312436 | F108: -0.9108161752 | G108: -0.9104724559 | H108: -0.9100992225 | I108: -0.9096955592 | J108: -0.9092605001 | K108: -0.908793031 | L108: -0.908292092 | M108: -0.90775658 | N108: -0.9071853513 | O108: -0.9065772241 | P108: -0.9059309817 | Q108: -0.9052453751 | R108: -0.9045191262 | S108: -0.9037509309 | T108: -0.902939462 | U108: -0.902083373 | V108: -0.9011813011 | W108: -0.9002318707 | X108: -0.8992336967 | Y108: -0.8981853885 | Z108: -0.897085553 | AA108: -0.8959327989 | AB108: -0.8947257395 | AC108: -0.8934629972 | AD108: -0.8921432067 | AE108: -0.890765019 | AF108: -0.8893271049 | AG108: -0.8878281587 | AH108: -0.8862669022
B110: SEC(theta) | C110: 1 | D110: =IF(D85>0,1/(D85+0.0000001),0) -> 0 | E110: 0 | F110: 0 | G110: 0 | H110: 0 | I110: 0 | J110: 0 | K110: 0 | L110: 0 | M110: 0 | N110: 0 | O110: 0 | P110: 0 | Q110: 0 | R110: 0 | S110: 0 | T110: 0 | U110: 0 | V110: 0 | W110: 0 | X110: 0 | Y110: 0 | Z110: 0 | AA110: 0 | AB110: 0 | AC110: 0 | AD110: 0 | AE110: 0 | AF110: 0 | AG110: 0 | AH110: 0
C111: 2 | D111: =IF(D86>0,1/(D86+0.0000001),0) -> 0 | E111: 0 | F111: 0 | G111: 0 | H111: 0 | I111: 0 | J111: 0 | K111: 0 | L111: 0 | M111: 0 | N111: 0 | O111: 0 | P111: 0 | Q111: 0 | R111: 0 | S111: 0 | T111: 0 | U111: 0 | V111: 0 | W111: 0 | X111: 0 | Y111: 0 | Z111: 0 | AA111: 0 | AB111: 0 | AC111: 0 | AD111: 0 | AE111: 0 | AF111: 0 | AG111: 0 | AH111: 0
C112: 3 | D112: =IF(D87>0,1/(D87+0.0000001),0) -> 0 | E112: 0 | F112: 0 | G112: 0 | H112: 0 | I112: 0 | J112: 0 | K112: 0 | L112: 0 | M112: 0 | N112: 0 | O112: 0 | P112: 0 | Q112: 0 | R112: 0 | S112: 0 | T112: 0 | U112: 0 | V112: 0 | W112: 0 | X112: 0 | Y112: 0 | Z112: 0 | AA112: 0 | AB112: 0 | AC112: 0 | AD112: 0 | AE112: 0 | AF112: 0 | AG112: 0 | AH112: 0
C113: 4 | D113: =IF(D88>0,1/(D88+0.0000001),0) -> 0 | E113: 0 | F113: 0 | G113: 0 | H113: 0 | I113: 0 | J113: 0 | K113: 0 | L113: 0 | M113: 0 | N113: 0 | O113: 0 | P113: 0 | Q113: 0 | R113: 0 | S113: 0 | T113: 0 | U113: 0 | V113: 0 | W113: 0 | X113: 0 | Y113: 0 | Z113: 0 | AA113: 0 | AB113: 0 | AC113: 0 | AD113: 0 | AE113: 0 | AF113: 0 | AG113: 0 | AH113: 0
C114: 5 | D114: =IF(D89>0,1/(D89+0.0000001),0) -> 0 | E114: 0 | F114: 0 | G114: 0 | H114: 0 | I114: 0 | J114: 0 | K114: 0 | L114: 0 | M114: 0 | N114: 0 | O114: 0 | P114: 0 | Q114: 0 | R114: 0 | S114: 0 | T114: 0 | U114: 0 | V114: 0 | W114: 0 | X114: 0 | Y114: 0 | Z114: 0 | AA114: 0 | AB114: 0 | AC114: 0 | AD114: 0 | AE114: 0 | AF114: 0 | AG114: 0 | AH114: 0
C115: 6 | D115: =IF(D90>0,1/(D90+0.0000001),0) -> 0 | E115: 0 | F115: 0 | G115: 0 | H115: 0 | I115: 0 | J115: 0 | K115: 0 | L115: 0 | M115: 0 | N115: 0 | O115: 0 | P115: 0 | Q115: 0 | R115: 0 | S115: 0 | T115: 0 | U115: 0 | V115: 0 | W115: 0 | X115: 0 | Y115: 0 | Z115: 0 | AA115: 0 | AB115: 0 | AC115: 0 | AD115: 0 | AE115: 0 | AF115: 0 | AG115: 0 | AH115: 0
C116: 7 | D116: =IF(D91>0,1/(D91+0.0000001),0) -> 12.60116771 | E116: 12.46227094 | F116: 12.31492144 | G116: 12.15981092 | H116: 11.99764075 | I116: 11.82911532 | J116: 11.65493585 | K116: 11.47579468 | L116: 11.29237016 | M116: 11.10532216 | N116: 10.91528811 | O116: 10.72287975 | P116: 10.52868042 | Q116: 10.33324296 | R116: 10.13708816 | S116: 9.940703705 | T116: 9.744543573 | U116: 9.549027886 | V116: 9.354543091 | W116: 9.161442485 | X116: 8.97004699 | Y116: 8.780646173 | Z116: 8.593499429 | AA116: 8.40883732 | AB116: 8.226863015 | AC116: 8.047753803 | AD116: 7.871662649 | AE116: 7.69871978 | AF116: 7.529034259 | AG116: 7.362695548 | AH116: 7.199775033
C117: 8 | D117: =IF(D92>0,1/(D92+0.0000001),0) -> 4.626302189 | E117: 4.605699367 | F117: 4.583550935 | G117: 4.559904568 | H117: 4.534810487 | I117: 4.508321221 | J117: 4.480491369 | K117: 4.451377352 | L117: 4.421037172 | M117: 4.389530164 | N117: 4.356916754 | O117: 4.323258219 | P117: 4.28861645 | Q117: 4.253053725 | R117: 4.216632486 | S117: 4.179415127 | T117: 4.141463791 | U117: 4.102840178 | V117: 4.063605361 | W117: 4.023819618 | X117: 3.983542273 | Y117: 3.94283155 | Z117: 3.901744445 | AA117: 3.860336599 | AB117: 3.818662194 | AC117: 3.776773857 | AD117: 3.734722577 | AE117: 3.692557637 | AF117: 3.650326549 | AG117: 3.608075008 | AH117: 3.565846856
C118: 9 | D118: =IF(D93>0,1/(D93+0.0000001),0) -> 3.114063103 | E118: 3.104104701 | F118: 3.093374214 | G118: 3.081889284 | H118: 3.069668621 | I118: 3.056731935 | J118: 3.043099873 | K118: 3.028793947 | L118: 3.013836462 | M118: 2.998250444 | N118: 2.982059567 | O118: 2.96528808 | P118: 2.94796073 | Q118: 2.930102692 | R118: 2.911739489 | S118: 2.892896929 | T118: 2.873601026 | U118: 2.853877933 | V118: 2.833753874 | W118: 2.813255082 | X118: 2.792407727 | Y118: 2.771237863 | Z118: 2.749771366 | AA118: 2.72803388 | AB118: 2.706050763 | AC118: 2.683847037 | AD118: 2.661447344 | AE118: 2.638875904 | AF118: 2.61615647 | AG118: 2.593312294 | AH118: 2.570366097
C119: 10 | D119: =IF(D94>0,1/(D94+0.0000001),0) -> 2.58324615 | E119: 2.576125636 | F119: 2.568447235 | G119: 2.560222272 | H119: 2.551462777 | I119: 2.542181462 | J119: 2.532391669 | K119: 2.52210734 | L119: 2.511342972 | M119: 2.500113573 | N119: 2.488434626 | O119: 2.476322037 | P119: 2.463792098 | Q119: 2.450861441 | R119: 2.437546991 | S119: 2.423865927 | T119: 2.409835637 | U119: 2.395473672 | V119: 2.38079771 | W119: 2.365825508 | X119: 2.350574868 | Y119: 2.335063591 | Z119: 2.319309446 | AA119: 2.303330129 | AB119: 2.287143228 | AC119: 2.270766193 | AD119: 2.254216299 | AE119: 2.23751062 | AF119: 2.220665996 | AG119: 2.203699012 | AH119: 2.186625968
C120: 11 | D120: =IF(D95>0,1/(D95+0.0000001),0) -> 2.441308365 | E120: 2.434867435 | F120: 2.427920517 | G120: 2.420477551 | H120: 2.412549109 | I120: 2.40414636 | J120: 2.395281043 | K120: 2.385965426 | L120: 2.37621228 | M120: 2.366034832 | N120: 2.355446741 | O120: 2.344462052 | P120: 2.33309516 | Q120: 2.321360775 | R120: 2.309273884 | S120: 2.296849709 | T120: 2.284103677 | U120: 2.271051374 | V120: 2.257708516 | W120: 2.244090909 | X120: 2.230214416 | Y120: 2.216094921 | Z120: 2.201748295 | AA120: 2.187190367 | AB120: 2.172436892 | AC120: 2.157503518 | AD120: 2.142405761 | AE120: 2.127158979 | AF120: 2.11177834 | AG120: 2.096278805 | AH120: 2.080675102
C121: 12 | D121: =IF(D96>0,1/(D96+0.0000001),0) -> 2.58324615 | E121: 2.576125636 | F121: 2.568447235 | G121: 2.560222272 | H121: 2.551462777 | I121: 2.542181462 | J121: 2.532391669 | K121: 2.52210734 | L121: 2.511342972 | M121: 2.500113573 | N121: 2.488434626 | O121: 2.476322037 | P121: 2.463792098 | Q121: 2.450861441 | R121: 2.437546991 | S121: 2.423865927 | T121: 2.409835637 | U121: 2.395473672 | V121: 2.38079771 | W121: 2.365825508 | X121: 2.350574868 | Y121: 2.335063591 | Z121: 2.319309446 | AA121: 2.303330129 | AB121: 2.287143228 | AC121: 2.270766193 | AD121: 2.254216299 | AE121: 2.23751062 | AF121: 2.220665996 | AG121: 2.203699012 | AH121: 2.186625968
C122: 13 | D122: =IF(D97>0,1/(D97+0.0000001),0) -> 3.114063103 | E122: 3.104104701 | F122: 3.093374214 | G122: 3.081889284 | H122: 3.069668621 | I122: 3.056731935 | J122: 3.043099873 | K122: 3.028793947 | L122: 3.013836462 | M122: 2.998250444 | N122: 2.982059567 | O122: 2.96528808 | P122: 2.94796073 | Q122: 2.930102692 | R122: 2.911739489 | S122: 2.892896929 | T122: 2.873601026 | U122: 2.853877933 | V122: 2.833753874 | W122: 2.813255082 | X122: 2.792407727 | Y122: 2.771237863 | Z122: 2.749771366 | AA122: 2.72803388 | AB122: 2.706050763 | AC122: 2.683847037 | AD122: 2.661447344 | AE122: 2.638875904 | AF122: 2.61615647 | AG122: 2.593312294 | AH122: 2.570366097
C123: 14 | D123: =IF(D98>0,1/(D98+0.0000001),0) -> 4.626302189 | E123: 4.605699367 | F123: 4.583550935 | G123: 4.559904568 | H123: 4.534810487 | I123: 4.508321221 | J123: 4.480491369 | K123: 4.451377352 | L123: 4.421037172 | M123: 4.389530164 | N123: 4.356916754 | O123: 4.323258219 | P123: 4.28861645 | Q123: 4.253053725 | R123: 4.216632486 | S123: 4.179415127 | T123: 4.141463791 | U123: 4.102840178 | V123: 4.063605361 | W123: 4.023819618 | X123: 3.983542273 | Y123: 3.94283155 | Z123: 3.901744445 | AA123: 3.860336599 | AB123: 3.818662194 | AC123: 3.776773857 | AD123: 3.734722577 | AE123: 3.692557637 | AF123: 3.650326549 | AG123: 3.608075008 | AH123: 3.565846856
C124: 15 | D124: =IF(D99>0,1/(D99+0.0000001),0) -> 12.60116771 | E124: 12.46227094 | F124: 12.31492144 | G124: 12.15981092 | H124: 11.99764075 | I124: 11.82911532 | J124: 11.65493585 | K124: 11.47579468 | L124: 11.29237016 | M124: 11.10532216 | N124: 10.91528811 | O124: 10.72287975 | P124: 10.52868042 | Q124: 10.33324296 | R124: 10.13708816 | S124: 9.940703705 | T124: 9.744543573 | U124: 9.549027886 | V124: 9.354543091 | W124: 9.161442485 | X124: 8.97004699 | Y124: 8.780646173 | Z124: 8.593499429 | AA124: 8.40883732 | AB124: 8.226863015 | AC124: 8.047753803 | AD124: 7.871662649 | AE124: 7.69871978 | AF124: 7.529034259 | AG124: 7.362695548 | AH124: 7.199775033
C125: 16 | D125: =IF(D100>0,1/(D100+0.0000001),0) -> 0 | E125: 0 | F125: 0 | G125: 0 | H125: 0 | I125: 0 | J125: 0 | K125: 0 | L125: 0 | M125: 0 | N125: 0 | O125: 0 | P125: 0 | Q125: 0 | R125: 0 | S125: 0 | T125: 0 | U125: 0 | V125: 0 | W125: 0 | X125: 0 | Y125: 0 | Z125: 0 | AA125: 0 | AB125: 0 | AC125: 0 | AD125: 0 | AE125: 0 | AF125: 0 | AG125: 0 | AH125: 0
C126: 17 | D126: =IF(D101>0,1/(D101+0.0000001),0) -> 0 | E126: 0 | F126: 0 | G126: 0 | H126: 0 | I126: 0 | J126: 0 | K126: 0 | L126: 0 | M126: 0 | N126: 0 | O126: 0 | P126: 0 | Q126: 0 | R126: 0 | S126: 0 | T126: 0 | U126: 0 | V126: 0 | W126: 0 | X126: 0 | Y126: 0 | Z126: 0 | AA126: 0 | AB126: 0 | AC126: 0 | AD126: 0 | AE126: 0 | AF126: 0 | AG126: 0 | AH126: 0
C127: 18 | D127: =IF(D102>0,1/(D102+0.0000001),0) -> 0 | E127: 0 | F127: 0 | G127: 0 | H127: 0 | I127: 0 | J127: 0 | K127: 0 | L127: 0 | M127: 0 | N127: 0 | O127: 0 | P127: 0 | Q127: 0 | R127: 0 | S127: 0 | T127: 0 | U127: 0 | V127: 0 | W127: 0 | X127: 0 | Y127: 0 | Z127: 0 | AA127: 0 | AB127: 0 | AC127: 0 | AD127: 0 | AE127: 0 | AF127: 0 | AG127: 0 | AH127: 0
C128: 19 | D128: =IF(D103>0,1/(D103+0.0000001),0) -> 0 | E128: 0 | F128: 0 | G128: 0 | H128: 0 | I128: 0 | J128: 0 | K128: 0 | L128: 0 | M128: 0 | N128: 0 | O128: 0 | P128: 0 | Q128: 0 | R128: 0 | S128: 0 | T128: 0 | U128: 0 | V128: 0 | W128: 0 | X128: 0 | Y128: 0 | Z128: 0 | AA128: 0 | AB128: 0 | AC128: 0 | AD128: 0 | AE128: 0 | AF128: 0 | AG128: 0 | AH128: 0
C129: 20 | D129: =IF(D104>0,1/(D104+0.0000001),0) -> 0 | E129: 0 | F129: 0 | G129: 0 | H129: 0 | I129: 0 | J129: 0 | K129: 0 | L129: 0 | M129: 0 | N129: 0 | O129: 0 | P129: 0 | Q129: 0 | R129: 0 | S129: 0 | T129: 0 | U129: 0 | V129: 0 | W129: 0 | X129: 0 | Y129: 0 | Z129: 0 | AA129: 0 | AB129: 0 | AC129: 0 | AD129: 0 | AE129: 0 | AF129: 0 | AG129: 0 | AH129: 0
C130: 21 | D130: =IF(D105>0,1/(D105+0.0000001),0) -> 0 | E130: 0 | F130: 0 | G130: 0 | H130: 0 | I130: 0 | J130: 0 | K130: 0 | L130: 0 | M130: 0 | N130: 0 | O130: 0 | P130: 0 | Q130: 0 | R130: 0 | S130: 0 | T130: 0 | U130: 0 | V130: 0 | W130: 0 | X130: 0 | Y130: 0 | Z130: 0 | AA130: 0 | AB130: 0 | AC130: 0 | AD130: 0 | AE130: 0 | AF130: 0 | AG130: 0 | AH130: 0
C131: 22 | D131: =IF(D106>0,1/(D106+0.0000001),0) -> 0 | E131: 0 | F131: 0 | G131: 0 | H131: 0 | I131: 0 | J131: 0 | K131: 0 | L131: 0 | M131: 0 | N131: 0 | O131: 0 | P131: 0 | Q131: 0 | R131: 0 | S131: 0 | T131: 0 | U131: 0 | V131: 0 | W131: 0 | X131: 0 | Y131: 0 | Z131: 0 | AA131: 0 | AB131: 0 | AC131: 0 | AD131: 0 | AE131: 0 | AF131: 0 | AG131: 0 | AH131: 0
C132: 23 | D132: =IF(D107>0,1/(D107+0.0000001),0) -> 0 | E132: 0 | F132: 0 | G132: 0 | H132: 0 | I132: 0 | J132: 0 | K132: 0 | L132: 0 | M132: 0 | N132: 0 | O132: 0 | P132: 0 | Q132: 0 | R132: 0 | S132: 0 | T132: 0 | U132: 0 | V132: 0 | W132: 0 | X132: 0 | Y132: 0 | Z132: 0 | AA132: 0 | AB132: 0 | AC132: 0 | AD132: 0 | AE132: 0 | AF132: 0 | AG132: 0 | AH132: 0
C133: 24 | D133: =IF(D108>0,1/(D108+0.0000001),0) -> 0 | E133: 0 | F133: 0 | G133: 0 | H133: 0 | I133: 0 | J133: 0 | K133: 0 | L133: 0 | M133: 0 | N133: 0 | O133: 0 | P133: 0 | Q133: 0 | R133: 0 | S133: 0 | T133: 0 | U133: 0 | V133: 0 | W133: 0 | X133: 0 | Y133: 0 | Z133: 0 | AA133: 0 | AB133: 0 | AC133: 0 | AD133: 0 | AE133: 0 | AF133: 0 | AG133: 0 | AH133: 0

Sheet 3-PG function tools
B2: Selected 3-PG relationships
B4: This spreadsheet graphically displays selected 3-PG relationships. Use it for exploring
B5: how relationships change with parameter values. Edit only the parameter values. The
B6: graphs are automaticaly updated to display the relationship for the new values.
A8: Table 1
A9: Calculation ofVPD from Tmax and Tmin (assumes average daytime vpd =0.62 of max value)
A11: The following implements the internal calculation of VPD
A12: from maximum and minimum temperatures:
A13: VPD = (Sat Vap Pres at Tmax - Sat Vap Pres at Tmin)*0.62
A14: Enter data for Tmax and Tmin, and VPD is computed.
C17: Month | D17: Tmax | E17: Tmin | F17: VPD (mBar)
C18: Jan | D18: 10 | E18: 5 | F18: =(6.1078 * EXP(17.269 * D18 / (237.3 + D18)) -6.1078 * EXP(17.269 * E18 / (237.3 + E18)))*0.62 -> 2.20477184
C19: Feb | D19: 10 | E19: 5 | F19: =(6.1078 * EXP(17.269 * D19 / (237.3 + D19)) -6.1078 * EXP(17.269 * E19 / (237.3 + E19)))*0.62 -> 2.20477184
C20: Mar | D20: 10 | E20: 5 | F20: 2.20477184
C21: Apr | D21: 10 | E21: 5 | F21: 2.20477184
C22: May | D22: 10 | E22: 5 | F22: 2.20477184
C23: Jun | D23: 10 | E23: 5 | F23: 2.20477184
C24: Jul | D24: 10 | E24: 5 | F24: 2.20477184
C25: Aug | D25: 10 | E25: 5 | F25: 2.20477184
C26: Sep | D26: 10 | E26: 5 | F26: 2.20477184
C27: Oct | D27: 10 | E27: 5 | F27: 2.20477184
C28: Nov | D28: 10 | E28: 5 | F28: 2.20477184
C29: Dec | D29: 10 | E29: 5 | F29: 2.20477184
A32: Table 2
A33: [FROST DAYS]
A34: Calculation of days <-2oC/month from Tmin
A35: [calibrated assuming that frost days <-2oC halts photosynthesis and transpiration for 1 full day]
A36: Frost days/ month = Tmin (-2.00) +11.6; if <0, then 0 days of frost
A37: Note: if Tmin is <-9, then Frost days /month = 30
C40: Month | D40: Tmin | E40: Frost days | H40: Frost days
C41: Jan | D41: -8 | E41: =IF(H41<0,0,IF(D41<-9,30,IF(D41>-9,H41,0))) -> 27.6 | H41: =D41*(-2)+11.6 -> 27.6
C42: Feb | D42: 10 | E42: 0 | H42: -8.4
C43: Mar | D43: 10 | E43: 0 | H43: -8.4
C44: Apr | D44: 10 | E44: 0 | H44: -8.4
C45: May | D45: 10 | E45: 0 | H45: -8.4
C46: Jun | D46: 10 | E46: 0 | H46: -8.4
C47: Jul | D47: 10 | E47: 0 | H47: -8.4
C48: Aug | D48: 10 | E48: 0 | H48: -8.4
C49: Sep | D49: 10 | E49: 0 | H49: -8.4
C50: Oct | D50: 10 | E50: 0 | H50: -8.4
C51: Nov | D51: 10 | E51: 0 | H51: -8.4
C52: Dec | D52: 10 | E52: 0 | H52: -8.4
A54: Table 3
A55: gammaFx = | B55: 0.027 | C55: (/month) | D55: 0.027 | E55: (/month) | F55: 0.027 | G55: (/month)
A56: gammaF0 = | B56: 0.002 | C56: (/month) | D56: 0.002 | E56: (/month) | F56: 0.002 | G56: (/month)
A57: tgammaF = | B57: 12 | C57: (month) | D57: 24 | E57: (month) | F57: 48 | G57: (month)
A59: Age (years) | B59: gamma (/year) | C59: Life time (yr) | D59: gamma (/year) | E59: Life time (yr) | F59: gamma (/year) | G59: Life time (yr)
A60: 0 | B60: =B$55*B$56/(B$56+(B$55-B$56)*EXP(-LN(B$55/B$56+1)*12*$A60/B$57)) -> 0.002 | C60: =1/B60/12 -> 41.66666667 | D60: =D$55*D$56/(D$56+(D$55-D$56)*EXP(-LN(D$55/D$56+1)*12*$A60/D$57)) -> 0.002 | E60: =1/D60/12 -> 41.66666667 | F60: =F$55*F$56/(F$56+(F$55-F$56)*EXP(-LN(F$55/F$56+1)*12*$A60/F$57)) -> 0.002 | G60: =1/F60/12 -> 41.66666667
A61: 0.2 | B61: 0.003244368442 | C61: 25.6855332 | D61: 0.002555138086 | E61: 32.6140234 | F61: 0.002262144941 | G61: 36.83819362
A62: 0.4 | B62: 0.005104870278 | C62: 16.32428031 | D62: 0.003244368442 | E62: 25.6855332 | F62: 0.002555138086 | G62: 32.6140234
A63: 0.7 | B63: 0.009237461213 | C63: 9.021237699 | D63: 0.004574213847 | E63: 18.21806678 | F63: 0.003058326771 | G63: 27.24801487
A64: 1 | B64: 0.0145 | C64: 5.747126437 | D64: 0.006304491793 | E64: 13.21808896 | F64: 0.003645830076 | G64: 22.85716328
A65: 1.5 | B65: 0.02201582789 | C65: 3.78515556 | D65: 0.01006627065 | E65: 8.278471367 | F65: 0.004833850786 | G65: 17.23953366
A66: 2 | B66: 0.02548484848 | C66: 3.269916766 | D66: 0.0145 | E66: 5.747126437 | F66: 0.006304491793 | G66: 13.21808896
A67: 2.5 | B67: 0.02658492606 | C67: 3.134608429 | D67: 0.01872693134 | E67: 4.449919306 | F67: 0.008059868789 | G67: 10.33929156
A68: 3 | B68: 0.02688974642 | C68: 3.099074719 | D68: 0.02201582789 | E68: 3.78515556 | F68: 0.01006627065 | G68: 8.278471367
A69: 3.5 | B69: 0.02697095854 | C69: 3.08974311 | D69: 0.02419321241 | E69: 3.444492278 | F69: 0.01224912046 | G69: 6.803209555
A70: 4 | B70: 0.02699236729 | C70: 3.087292509 | D70: 0.02548484848 | E70: 3.269916766 | F70: 0.0145 | G70: 5.747126437
A71: 4.5 | B71: 0.02699799513 | C71: 3.08664895 | D71: 0.0262017083 | E71: 3.180454205 | F71: 0.01669632869 | G71: 4.991117203
A72: 5 | B72: 0.02699947347 | C72: 3.086479943 | D72: 0.02658492606 | E72: 3.134608429 | F72: 0.01872693134 | G72: 4.449919306
A73: 5.5 | B73: 0.02699986172 | C73: 3.08643556 | D73: 0.02678568588 | E73: 3.11111441 | F73: 0.02051283781 | G73: 4.062496574
A74: 6 | B74: 0.02699996369 | C74: 3.086423904 | D74: 0.02688974642 | E74: 3.099074719 | F74: 0.02201582789 | G74: 3.78515556
A77: Table 4
A78: Root allocation
A80: pRx = | B80: 0.8 | C80: 0.8 | D80: 0.8
A81: pRn = | B81: 0.23 | C81: 0.23 | D81: 0.23
A82: FR = | B82: 1 | C82: 0.7 | D82: 0.4
A84: Q*/Q | B84: etaR | C84: etaR | D84: etaR
A85: 0 | B85: =B$80*B$81/(B$81+(B$80-B$81)*B$82*$A85) -> 0.8 | C85: 0.8 | D85: 0.8
A86: 0.1 | B86: 0.6411149826 | C86: 0.6817339755 | D86: 0.7278481013
A87: 0.2 | B87: 0.5348837209 | C87: 0.5939315688 | D87: 0.6676342525
A88: 0.3 | B88: 0.4588528678 | C88: 0.5261652845 | D88: 0.6166219839
A89: 0.4 | B89: 0.4017467249 | C89: 0.4722792608 | D89: 0.5728518057
A90: 0.5 | B90: 0.3572815534 | C90: 0.4284051222 | D90: 0.5348837209
A91: 0.6 | B91: 0.3216783217 | C91: 0.3919897742 | D91: 0.5016357688
A92: 0.7 | B92: 0.2925278219 | C92: 0.3612801885 | D92: 0.4722792608
A93: 0.8 | B93: 0.2682215743 | C93: 0.3350327749 | D93: 0.4461687682
A94: 0.9 | B94: 0.2476446837 | C94: 0.3123408589 | D94: 0.4227941176
A95: 1 | B95: 0.23 | C95: 0.2925278219 | D95: 0.4017467249
A99: Table 5
A100: Age dependent decline
A101: Table 3
A102: MaxAge = | B102: 50 | C102: (years)
A103: nAge = | B103: 4 | C103: (-)
A104: rAge = | B104: 0.95 | C104: (-)
A106: Age | B106: relAge | C106: fAge
A107: 0 | B107: =A107/$B$102 -> 0 | C107: =1/(1+(B107/$B$104)^$B$103) -> 1
A108: 5 | B108: 0.1 | C108: 0.9998772413
A109: 10 | B109: 0.2 | C109: 0.998039471
A110: 15 | B110: 0.3 | C110: 0.9901532477
A111: 20 | B111: 0.4 | C111: 0.9695276639
A112: 25 | B112: 0.5 | C112: 0.9287348294
A113: 30 | B113: 0.6 | C113: 0.8627273149
A114: 35 | B114: 0.7 | C114: 0.7723320908
A115: 40 | B115: 0.8 | C115: 0.6653885233
A116: 45 | B116: 0.9 | C116: 0.5538574652
A117: 50 | B117: 1 | C117: 0.4488858884
A120: Table 6
A121: Biomass partitioning
B123: aS = | C123: 0.095 | D123: nF = | E123: =C124+E125 -> 1.797940009 | F123: aS = | G123: 0.095 | H123: nF = | I123: =G124+I125 -> 1.576091259 | J123: aS = | K123: 0.095 | L123: nF = | N123: =K124+N125 -> 1.098970004
B124: nS = | C124: 2.4 | D124: aF = | E124: =E126*C123*C124/E123 -> 0.192485388 | F124: nS = | G124: 2.4 | H124: aF = | I124: =I126*G123*G124/I123 -> 0.2560794517 | J124: nS = | K124: 2.4 | L124: aF = | N124: =N126*K123*K124/N123 -> 0.5112084951
B125: etaR = | C125: 0.4 | D125: np = | E125: =LN(C127/C126)/LN(10) -> -0.6020599913 | F125: etaR = | G125: 0.4 | H125: np = | I125: =LN(G127/G126)/LN(10) -> -0.8239087409 | J125: etaR = | K125: 0.4 | L125: np = | N125: =LN(K127/K126)/LN(10) -> -1.301029996
B126: pFS2 = | C126: 1 | D126: ap = | E126: =C126/2^E125 -> 1.517882369 | F126: pFS2 = | G126: 1 | H126: ap = | I126: =G126/2^I125 -> 1.77019555 | J126: pFS2 = | K126: 1 | L126: ap = | N126: =K126/2^N125 -> 2.464047377
B127: pFS20 = | C127: 0.25 | F127: pFS20 = | G127: 0.15 | J127: pFS20 = | K127: 0.05
A129: D | B129: WS | C129: pFS | D129: etaS | E129: etaF | F129: WS | G129: pFS | H129: etaS | I129: etaF | J129: WS | K129: pFS | L129: etaS | N129: etaF
A130: 1 | B130: =$C$123*$A130^$C$124 -> 0.095 | C130: =$E$126*$A130^$E$125 -> 1.517882369 | D130: =(1-$C$125)/(1+C130) -> 0.2382954848 | E130: =C130*D130 -> 0.3617045152 | F130: =$C$123*$A130^$C$124 -> 0.095 | G130: =$I$126*$A130^$I$125 -> 1.77019555 | H130: =(1-$G$125)/(1+G130) -> 0.2165912078 | I130: =G130*H130 -> 0.3834087922 | J130: =$C$123*$A130^$C$124 -> 0.095 | K130: =$N$126*$A130^$N$125 -> 2.464047377 | L130: =(1-$K$125)/(1+K130) -> 0.1732077927 | N130: =K130*L130 -> 0.4267922073
A131: 2 | B131: 0.5014130061 | C131: 1 | D131: 0.3 | E131: 0.3 | F131: 0.5014130061 | G131: 1 | H131: 0.3 | I131: 0.3 | J131: 0.5014130061 | K131: 1 | L131: 0.3 | N131: 0.3
A132: 3 | B132: 1.326827966 | C132: 0.7833980715 | D132: 0.3364363849 | E132: 0.2635636151 | F132: 1.326827966 | G132: 0.7160063476 | H132: 0.3496490563 | I132: 0.2503509437 | J132: 1.326827966 | K132: 0.5900651834 | L132: 0.3773430211 | N132: 0.2226569789
A133: 4 | B133: 2.646473712 | C133: 0.65881258 | D133: 0.3617045152 | E133: 0.2382954848 | F133: 2.646473712 | G133: 0.56490934 | H133: 0.3834087922 | I133: 0.2165912078 | J133: 2.646473712 | K133: 0.4058363525 | L133: 0.4267922073 | N133: 0.1732077927
A134: 5 | B134: 4.521178104 | C134: 0.5759917219 | D134: 0.3807126596 | E134: 0.2192873404 | F134: 4.521178104 | G134: 0.4700388429 | H134: 0.4081524804 | I134: 0.1918475196 | J134: 4.521178104 | K134: 0.3035764739 | L134: 0.4602721912 | N134: 0.1397278088
A135: 6 | B135: 7.003039988 | C135: 0.5161125047 | D135: 0.395748995 | E135: 0.204251005 | F135: 7.003039988 | G135: 0.4044786733 | H135: 0.4272047781 | I135: 0.1727952219 | J135: 7.003039988 | K135: 0.2394699018 | L135: 0.4840779104 | N135: 0.1159220896
A136: 7 | B136: 10.13815441 | C136: 0.470368682 | D136: 0.408060922 | E136: 0.191939078 | F136: 10.13815441 | G136: 0.356235817 | H136: 0.4424009398 | I136: 0.1575990602 | J136: 10.13815441 | K136: 0.1959526561 | L136: 0.5016921004 | N136: 0.09830789961
A137: 8 | B137: 13.968172 | C137: 0.4340340156 | D137: 0.4184001171 | E137: 0.1815998829 | F137: 13.968172 | G137: 0.3191225625 | H137: 0.4548478034 | I137: 0.1451521966 | J137: 13.968172 | K137: 0.164703145 | L137: 0.5151527259 | N137: 0.08484727411
A138: 10 | B138: 23.8629211 | C138: 0.3794705924 | D138: 0.4349494678 | E138: 0.1650505322 | F138: 23.8629211 | G138: 0.2655293325 | H138: 0.4741099116 | I138: 0.1258900884 | J138: 23.8629211 | K138: 0.1232023689 | L138: 0.5341869076 | N138: 0.06581309243
A139: 15 | B139: 63.14553207 | C139: 0.2972765303 | D139: 0.4625074038 | E139: 0.1374925962 | F139: 63.14553207 | G139: 0.1901206876 | H139: 0.5041505507 | I139: 0.09584944933 | J139: 63.14553207 | K139: 0.07269742838 | L139: 0.5593375952 | N139: 0.04066240477
A140: 20 | B140: 125.9492527 | C140: 0.25 | D140: 0.48 | E140: 0.12 | F140: 125.9492527 | G140: 0.15 | H140: 0.5217391304 | I140: 0.07826086957 | J140: 125.9492527 | K140: 0.05 | L140: 0.5714285714 | N140: 0.02857142857
A141: 30 | B141: 333.2841164 | C141: 0.1958495179 | D141: 0.5017353697 | E141: 0.09826463026 | F141: 333.2841164 | G141: 0.1074009521 | H141: 0.5418091784 | I141: 0.05819082163 | J141: 333.2841164 | K141: 0.02950325917 | L141: 0.5828053429 | N141: 0.01719465708
A158: Table 7
A159: Specific leaf area
A161: SLA0 | B161: 11 | C161: 11 | D161: 11 | E161: (m2/kg)
A162: SLA1 | B162: 4 | C162: 4 | D162: 4 | E162: (m2/kg)
A163: tSLA | B163: 2 | C163: 2.5 | D163: 3 | E163: (years)
A164: n | B164: 2 | C164: 2 | D164: 2
A166: Age
A167: 0 | B167: =B$162+(B$161-B$162)*EXP(-0.69315*($A167/B$163)^B$164) -> 11 | C167: 11 | D167: 11
A168: 0.25 | B168: 10.92459579 | C168: 10.95164727 | D168: 10.96638617
A169: 0.5 | B169: 10.70322178 | C169: 10.80858386 | D169: 10.86651008
A170: 1 | B170: 9.886270758 | C170: 10.26517267 | D170: 10.48112096
A171: 1.5 | B171: 8.739886897 | C171: 9.454146522 | D171: 9.886270758
A172: 2 | B172: 7.499990132 | C172: 8.491982536 | D172: 9.144064277
A173: 2.5 | B173: 6.369936767 | C173: 7.499990132 | D173: 8.325622161
A174: 3 | B174: 5.471559391 | C174: 6.579960656 | D174: 7.499990132
A175: 4 | B175: 4.437495066 | C175: 5.187020219 | D175: 6.041415587
A176: 5 | B176: 4.091971425 | C176: 4.437495066 | D176: 5.020704916
A177: 6 | B177: 4.013671528 | C177: 4.129168975 | D177: 4.437495066
A178: 7 | B178: 4.001437029 | C178: 4.030550145 | D178: 4.160749743
A179: 8 | B179: 4.000106807 | C179: 4.005788131 | D179: 4.050632758
A182: Table 8
A183: Branch+bark fraction
A185: fracBB0 | B185: 0.75 | C185: 0.75 | D185: 0.75 | E185: (-)
A186: fracBB1 | B186: 0.15 | C186: 0.15 | D186: 0.15 | E186: (-)
A187: tBB | B187: 3 | C187: 2 | D187: 1 | E187: (years)
A188: n | B188: 1 | C188: 1 | D188: 1 | E188: (-)
A190: Age
A191: 0 | B191: =B$186+(B$185-B$186)*EXP(-0.69315*($A191/B$187)^B$188) -> 0.75 | C191: 0.75 | D191: 0.75
A192: 0.25 | B192: 0.7163244545 | C192: 0.700202232 | D192: 0.6545374935
A193: 0.5 | B193: 0.6845389797 | C193: 0.6545374935 | D193: 0.5742634706
A194: 1 | B194: 0.626219868 | C194: 0.5742634706 | D194: 0.4499991542
A195: 1.5 | B195: 0.5742634706 | C195: 0.5067613801 | D195: 0.3621311372
A196: 2 | B196: 0.5279756045 | C196: 0.4499991542 | D196: 0.2999991542
A197: 2.5 | B197: 0.4867378233 | C197: 0.4022680355 | D197: 0.2560652696
A198: 3 | B198: 0.4499991542 | C198: 0.3621311372 | D198: 0.2249993656
A199: 4 | B199: 0.3881092627 | C199: 0.2999991542 | D199: 0.1874995771
A200: 5 | B200: 0.3389872694 | C200: 0.2560652696 | D200: 0.1687497357
A201: 6 | B201: 0.2999991542 | C201: 0.2249993656 | D201: 0.1593748414
A202: 7 | B202: 0.2690542957 | C202: 0.2030324853 | D202: 0.1546874075
A203: 8 | B203: 0.2444933683 | C203: 0.1874995771 | D203: 0.1523436971
A206: Table 9
A207: Determination of temperature modifier fT(Tav)
B210: alpha0 = | C210: 0.06 | D210: 0.06 | E210: 0.06 | F210: (mol/mol)
B211: Tmin = | C211: 7.5 | D211: 7.5 | E211: 7.5 | F211: (deg C)
B212: Topt = | C212: 14 | D212: 15 | E212: 16 | F212: (deg C)
B213: Tmax = | C213: 35 | D213: 35 | E213: 35 | F213: (deg C)
B215: T | C215: fTemp | D215: fTemp | E215: fTemp
B216: 7 | C216: =C$210*MAX(0,(($B216-C$211)/(C$212-C$211))*((C$213-$B216)/(C$213-C$212))^((C$213-C$212)/(C$212-C$211))) -> 0 | D216: 0 | E216: 0
B217: 7.5 | C217: 0 | D217: 0 | E217: 0
B218: 8 | C218: 0.01039509569 | D218: 0.008904646991 | E218: 0.007741603584
B219: 9 | C219: 0.02760553028 | D219: 0.02415628726 | E219: 0.02134591535
B220: 10 | C220: 0.04053349526 | D220: 0.03626241276 | E220: 0.03259034887
B221: 11 | C221: 0.04973527642 | D221: 0.04553108722 | E221: 0.04164741367
B222: 12 | C222: 0.05573055744 | D222: 0.05225927837 | E222: 0.04868740841
B223: 13 | C223: 0.05900285973 | D223: 0.05673266309 | E223: 0.05387833098
B224: 14 | C224: 0.06 | D224: 0.0592254189 | E224: 0.05738578025
B225: 15 | C225: 0.05913456707 | D225: 0.06 | E225: 0.05937284806
B226: 16 | C226: 0.05678441989 | D226: 0.05930689585 | E226: 0.06
B227: 17 | C227: 0.05329320892 | D227: 0.05738436992 | E227: 0.0594249431
B228: 18 | C228: 0.04897092352 | D228: 0.0544581756 | E228: 0.05780247807
B229: 19 | C229: 0.04409446833 | D229: 0.05074124582 | E229: 0.05528433336
B230: 20 | C230: 0.03890827218 | D230: 0.04643335194 | E230: 0.05201897719
B231: 21 | C231: 0.03362493401 | D231: 0.04172072648 | E231: 0.04815140316
B232: 22 | C232: 0.02842591085 | D232: 0.0367756429 | E232: 0.04382288323
B233: 23 | C233: 0.02346225455 | D233: 0.03175594342 | E233: 0.03917068009
B234: 24 | C234: 0.01885540515 | D234: 0.02680450366 | E234: 0.03432770822
B235: 25 | C235: 0.01469805132 | D235: 0.02204861837 | E235: 0.02942212856
B236: 26 | C236: 0.01105507127 | D236: 0.01759928748 | E236: 0.02457685567
B237: 27 | C237: 0.00796457184 | D237: 0.01355037274 | E237: 0.01990894604
B238: 28 | C238: 0.005439050432 | D238: 0.009977581861 | E238: 0.01552882019
B239: 29 | C239: 0.003466714337 | D239: 0.006937214548 | E239: 0.01153924236
B240: 30 | C240: 0.0020130093 | D240: 0.004464565459 | E240: 0.008033928823
A243: Table 10
A244: Soil water modifier
B246: Swconst = | C246: 0.7 | D246: 0.6 | E246: 0.5 | F246: 0.4
B247: Swpower = | C247: 9 | D247: 7 | E247: 5 | F247: 3
B249: relASW | C249: S | D249: SL | E249: CL | F249: C
B250: 0 | C250: =1/(1+((1-$B250)/C$246)^C$247) -> 0.03878835689 | D250: 0.02723129794 | E250: 0.0303030303 | F250: 0.06015037594
B251: 0.1 | C251: 0.09433391918 | D251: 0.05529157667 | E251: 0.05026216747 | F251: 0.08070617907
B252: 0.2 | C252: 0.2311582655 | D252: 0.1177642561 | E252: 0.08706433009 | F252: 0.1111111111
B253: 0.3 | C253: 0.5 | D253: 0.2536849365 | E253: 0.1567830624 | F253: 0.1572481572
B254: 0.4 | C254: 0.8001698271 | D254: 0.5 | E254: 0.2866709476 | F254: 0.2285714286
B255: 0.5 | C255: 0.9538341794 | D255: 0.7818109205 | E255: 0.5 | F255: 0.3386243386
... 22 more rows

Sheet 
A2: Run type : | B2: SingleSite | E2: Stand initialisation and site factor data | K2: Optional parameter block | N2: Definition of parameter
A3: Site : | B3: Metolius River Oregon | F3: Year planted = | G3: 1999 | I3: Latitude = | J3: 44 | L3: Parameters | S3: gC/MJ APAR
A4: Species : | B4: Doug fir | F4: Month planted = | G4: Jan | I4: Fertility rating = | J4: 0.25
A5: Climate data : | B5: Metolius, OR Metdata | F5: Initial year = | G5: 1 | I5: Soil class = | J5: sl
A6: Met station : | B6: Mean Data | F6: Initial month = | G6: Jan | I6: Maximum ASW = | J6: 100
A7: Title : | B7: Ponderosa pine average climate | F7: End age = | G7: 100 | I7: Minimum ASW = | J7: 0
F8: Initial WF = | G8: 3 | I8: Atmospheric CO2 = | J8: 360
F9: Initial WR = | G9: 3
F10: Initial WS = | G10: 3
F11: Initial stocking = | G11: 300
F12: Initial ASW = | G12: 100
F16: Output details | H16: BasArea, avdbh
G17: Output frequency : | H17: a
A36: #Output from 3PGpjs 2.7 / 3-PG vsn 1 Sep2009
A37: Stand development for Metolius River Oregon
A38: Ponderosa pine average climate | Q38: Tree vigor
A39: Year & month | B39: Stand age | C39: Stems | D39: Foliage DM | E39: Root DM | F39: Stem DM | G39: Stand volume | H39: LAI | I39: MAI | J39: Mean DBH | K39: Basal area | L39: GPP | M39: Penman transp. | Q39: g wood/m2 Leaf area/yr | S39: % mortality/yr
A40: 2000 - Jan | B40: 1 | C40: 300 | D40: 3 | E40: 3 | F40: 3 | G40: 6.365027996 | H40: 1.65 | I40: 6.365027996 | J40: 7.103975709 | K40: 1.189088206
A41: 2001 - Jan | B41: 2 | C41: 300 | D41: 3.024637613 | E41: 0.3061026946 | F41: 3.179192658 | G41: 6.735295881 | H41: 1.679149727 | I41: 3.36764794 | J41: 7.275199558 | K41: 1.247099075 | L41: 1.747213323 | M41: 265.865355 | Q41: =1000*(F41-F40)/F41 -> 56.36420216 | S41: =100*(C40-C41)/C40 -> 0
A42: 2002 - Jan | B42: 3 | C42: 300 | D42: 3.026093133 | E42: 0.1931456602 | F42: 3.499201555 | G42: 7.403005648 | H42: 1.70271883 | I42: 2.467668549 | J42: 7.567356263 | K42: 1.349271967 | L42: 3.098024643 | M42: 265.8782555 | Q42: =1000*(F42-F41)/F42 -> 91.45197633 | S42: =100*(C41-C42)/C41 -> 0
A43: 2003 - Jan | B43: 4 | C43: 300 | D43: 2.966500786 | E43: 0.2536260019 | F43: 3.954744046 | G43: 8.355901495 | H43: 1.698078951 | I43: 2.088975374 | J43: 7.957257167 | K43: 1.491893852 | L43: 4.380192062 | M43: 265.8594746 | Q43: 115.1888681 | S43: 0
A44: 2004 - Jan | B44: 5 | C44: 300 | D44: 2.880719494 | E44: 0.3186117945 | F44: 4.533184587 | G44: 9.56640514 | H44: 1.665891675 | I44: 1.913281028 | J44: 8.415916741 | K44: 1.668837295 | L44: 5.523150309 | M44: 265.797373 | Q44: 127.601365 | S44: 0
A45: 2005 - Jan | B45: 6 | C45: 300 | D45: 2.819143462 | E45: 0.3748327938 | F45: 5.217802795 | G45: 10.99857191 | H45: 1.633136814 | I45: 1.833095318 | J45: 8.916165048 | K45: 1.873127476 | L45: 6.491187503 | M45: 265.7306929 | Q45: 131.2081416 | S45: 0
A46: 2006 - Jan | B46: 7 | C46: 300 | D46: 2.802586216 | E46: 0.422754675 | F46: 5.994151789 | G46: 12.62149465 | H46: 1.619663473 | I46: 1.803070664 | J46: 9.438613645 | K46: 2.099073059 | L46: 7.309917613 | M46: 265.6922365 | Q46: 129.5177403 | S46: 0
A47: 2007 - Jan | B47: 8 | C47: 300 | D47: 2.830564769 | E47: 0.4652172484 | F47: 6.853323036 | G47: 14.41611393 | H47: 1.630454935 | I47: 1.802014242 | J47: 9.972175732 | K47: 2.343100854 | L47: 8.034766247 | M47: 265.689793 | Q47: 125.3656427 | S47: 0
A48: 2008 - Jan | B48: 9 | C48: 300 | D48: 2.896069008 | E48: 0.5048348591 | F48: 7.791327904 | G48: 16.37383675 | H48: 1.663342113 | I48: 1.819315194 | J48: 10.5113969 | K48: 2.60334668 | L48: 8.713790637 | M48: 265.7214719 | Q48: 120.3908858 | S48: 0
A49: 2009 - Jan | B49: 10 | C49: 300 | D49: 2.991894666 | E49: 0.5433366953 | F49: 8.807368992 | G49: 18.49284441 | H49: 1.71456211 | I49: 1.849284441 | J49: 11.05387784 | K49: 2.878991999 | L49: 9.377703556 | M49: 265.7853833 | Q49: 115.3626115 | S49: 0
A50: 2010 - Jan | B50: 11 | C50: 300 | D50: 3.11219265 | E50: 0.5817020775 | F50: 9.902441759 | G50: 20.77512215 | H50: 1.780685885 | I50: 1.888647468 | J50: 11.59868701 | K50: 3.169777621 | L50: 10.04351543 | M50: 265.8814118 | Q50: 110.5861356 | S50: 0
A51: 2011 - Jan | B51: 12 | C51: 300 | D51: 3.252475333 | E51: 0.6204281815 | F51: 11.07845567 | G51: 23.22459768 | H51: 1.858982387 | I51: 1.93538314 | J51: 12.14553359 | K51: 3.475716417 | L51: 10.7197464 | M51: 266.010651 | Q51: 106.1532353 | S51: 0
A52: 2012 - Jan | B52: 13 | C52: 300 | D52: 3.409290821 | E52: 0.6597700298 | F52: 12.33771213 | G52: 25.84603854 | H52: 1.947328908 | I52: 1.988156811 | J52: 12.69436277 | K52: 3.79693311 | L52: 11.41002004 | M52: 266.187693 | Q52: 102.0656383 | S52: 0
A53: 2013 - Jan | B53: 14 | C53: 300 | D53: 3.57993902 | E53: 0.6997423141 | F53: 13.68264287 | G53: 28.64450053 | H53: 2.044069629 | I53: 2.046035752 | J53: 13.24518513 | K53: 4.133588134 | L53: 12.1153518 | M53: 266.3979395 | Q53: 98.29466036 | S53: 0
A54: 2014 - Jan | B54: 15 | C54: 300 | D54: 3.762239609 | E54: 0.7403031595 | F54: 15.11563609 | G54: 31.6249626 | H54: 2.147874454 | I54: 2.10833084 | J54: 13.79799297 | K54: 4.485831695 | L54: 12.83524876 | M54: 266.6401113 | Q54: 94.80204549 | S54: 0
A55: 2015 - Jan | B55: 16 | C55: 300 | D55: 3.94589871 | E55: 0.7731207763 | F55: 16.62623555 | G55: 34.76555966 | H55: 2.254340884 | I55: 2.172847479 | J55: 14.34823065 | K55: 4.850738192 | L55: 13.45136555 | M55: 266.909203 | Q55: 90.856373 | S55: 0
A56: 2016 - Jan | B56: 17 | C56: 300 | D56: 4.107325667 | E56: 0.789892105 | F56: 18.17913709 | G56: 37.99256714 | H56: 2.350978406 | I56: 2.234856891 | J56: 14.88395234 | K56: 5.219725655 | L56: 13.75350567 | M56: 267.1829618 | Q56: 85.42218136 | S56: 0
A57: 2017 - Jan | B57: 18 | C57: 300 | D57: 4.247574195 | E57: 0.8029585423 | F57: 19.76822723 | G57: 41.2933965 | H57: 2.435197856 | I57: 2.294077583 | J57: 15.40490904 | K57: 5.591513953 | L57: 14.00406276 | M57: 267.4335514 | Q57: 80.38607222 | S57: 0
A58: 2018 - Jan | B58: 19 | C58: 300 | D58: 4.368084035 | E58: 0.8136240827 | F58: 21.38820626 | G58: 44.65717845 | H58: 2.507777245 | I58: 2.350377813 | J58: 15.91116023 | K58: 5.965060247 | L58: 14.21086739 | M58: 267.6657724 | Q58: 75.74169646 | S58: 0
A59: 2019 - Jan | B59: 20 | C59: 300 | D59: 4.470516041 | E59: 0.8223429932 | F59: 23.0345136 | G59: 48.07459881 | H59: 2.569648043 | I59: 2.40372994 | J59: 16.40297809 | K59: 6.339522475 | L59: 14.380779 | M59: 267.8779267 | Q59: 71.47133082 | S59: 0
A60: 2020 - Jan | B60: 21 | C60: 300 | D60: 4.556625976 | E60: 0.8294297266 | F60: 24.70324491 | G60: 51.53771875 | H60: 2.621816146 | I60: 2.454177083 | J60: 16.88077617 | K60: 6.71422605 | L60: 14.51970343 | M60: 268.0631913 | Q60: 67.55109754 | S60: 0
A61: 2021 - Jan | B61: 22 | C61: 300 | D61: 4.628168058 | E61: 0.8351593726 | F61: 26.39106036 | G61: 55.03977834 | H61: 2.665298555 | I61: 2.501808106 | J61: 17.34505448 | K61: 7.088632686 | L61: 14.63262417 | M61: 268.2220836 | Q61: 63.95405979 | S61: 0
A62: 2022 - Jan | B62: 23 | C62: 300 | D62: 4.686831906 | E62: 0.8397607144 | F62: 28.09510515 | G62: 58.57502675 | H62: 2.701083583 | I62: 2.546740293 | J62: 17.79636177 | K62: 7.462315168 | L62: 14.72373168 | M62: 268.3559429 | Q62: 60.65272854 | S62: 0
A63: 2023 - Jan | B63: 24 | C63: 300 | D63: 4.734202763 | E63: 0.8434228091 | F63: 29.81293885 | G63: 62.1385721 | H63: 2.730104538 | I63: 2.589107171 | J63: 18.23526891 | K63: 7.834936488 | L63: 14.79653606 | M63: 268.4666126 | Q63: 57.6204082 | S63: 0
A64: 2024 - Jan | B64: 25 | C64: 300 | D64: 4.771739114 | E64: 0.84630175 | F64: 31.54247409 | G64: 65.72625136 | H64: 2.753224332 | I64: 2.629050054 | J64: 18.66235074 | K64: 8.206232758 | L64: 14.8539727 | M64: 268.5562015 | Q64: 54.83194604 | S64: 0
A65: 2025 - Jan | B65: 26 | C65: 300 | D65: 4.800762789 | E65: 0.8485265389 | F65: 33.28192383 | G65: 69.33451911 | H65: 2.771228013 | I65: 2.666712273 | J65: 19.0781738 | K65: 8.575999315 | L65: 14.89849619 | M65: 268.6269118 | Q65: 52.26409832 | S65: 0
A66: 2026 - Jan | B66: 27 | C66: 300 | D66: 4.822457697 | E66: 0.850204005 | F66: 35.02975657 | G66: 72.96035308 | H66: 2.784820837 | I66: 2.702235299 | J66: 19.48328827 | K66: 8.944079455 | L66: 14.93216086 | M66: 268.6809209 | Q66: 49.89565764 | S66: 0
A67: 2027 - Jan | B67: 28 | C67: 300 | D67: 4.837874246 | E67: 0.8514228537 | F67: 36.78465834 | G67: 76.60117436 | H67: 2.794630056 | I67: 2.735756227 | J67: 19.87822306 | K67: 9.310355311 | L67: 14.95668869 | M67: 268.7203044 | Q67: 47.70743707 | S67: 0
A68: 2028 - Jan | B68: 29 | C68: 300 | D68: 4.847937267 | E68: 0.8522569642 | F68: 38.54550057 | G68: 80.25478008 | H68: 2.801209024 | I68: 2.76740621 | J68: 20.26348287 | K68: 9.674740463 | L68: 14.97352573 | M68: 268.7469905 | Q68: 45.68217291 | S68: 0
A69: 2029 - Jan | B69: 30 | C69: 300 | D69: 4.853455892 | E69: 0.8527680619 | F69: 40.31131286 | G69: 83.91928664 | H69: 2.805042662 | I69: 2.797309555 | J69: 20.63954682 | K69: 10.03717395 | L69: 14.98388875 | M69: 268.7627353 | Q69: 43.80438558 | S69: 0
A70: 2030 - Jan | B70: 31 | C70: 300 | D70: 4.855134298 | E70: 0.853007877 | F70: 42.08126004 | G70: 87.5930819 | H70: 2.806553568 | I70: 2.825583287 | J70: 21.00686799 | K70: 10.39761539 | L70: 14.98880361 | M70: 268.7691146 | Q70: 42.06022313 | S70: 0
A71: 2031 - Jan | B71: 32 | C71: 300 | D71: 4.853582576 | E71: 0.8530198907 | F71: 43.85462267 | G71: 91.27478472 | H71: 2.806108303 | I71: 2.852337023 | J71: 21.36587373 | K71: 10.75604105 | L71: 14.98913681 | M71: 268.7675255 | Q71: 40.43730202 | S71: 0
A72: 2032 - Jan | B72: 33 | C72: 300 | D72: 4.849327269 | E72: 0.8528407483 | F72: 45.63078043 | G72: 94.96321078 | H72: 2.804023547 | I72: 2.877673054 | J72: 21.7169663 | K72: 11.11244056 | L72: 14.98562149 | M72: 268.7591946 | Q72: 38.92455377 | S72: 0
A73: 2033 - Jan | B73: 34 | C73: 300 | D73: 4.842821276 | E73: 0.8525014072 | F73: 47.40919815 | G73: 98.65734357 | H73: 2.800571929 | I73: 2.901686576 | J73: 22.0605239 | K73: 11.46681432 | L73: 14.97887885 | M73: 268.7451895 | Q73: 37.51208184 | S73: 0
A74: 2034 - Jan | B74: 35 | C74: 300 | D74: 4.834452968 | E74: 0.8520280727 | F74: 49.18941375 | G74: 102.3563098 | H74: 2.795987419 | I74: 2.924465995 | J74: 22.3969018 | K74: 11.81917132 | L74: 14.96943584 | M74: 268.7264334 | Q74: 36.1910309 | S74: 0
A75: 2035 - Jan | B75: 36 | C75: 300 | D75: 4.824554465 | E75: 0.8514429652 | F75: 50.97102799 | G75: 106.0593586 | H75: 2.790470244 | I75: 2.946093295 | J75: 22.72643356 | K75: 12.16952735 | L75: 14.95773985 | M75: 268.7037193 | Q75: 34.95346903 | S75: 0
A76: 2036 - Jan | B76: 37 | C76: 300 | D76: 4.813409031 | E76: 0.8507649502 | F76: 52.75369579 | G76: 109.7658434 | H76: 2.784191296 | I76: 2.966644416 | J76: 23.04943228 | K76: 12.51790357 | L76: 14.944171 | M76: 268.6777245 | Q76: 33.79228251 | S76: 0
A77: 2037 - Jan | B77: 38 | C77: 300 | D77: 4.80125766 | E77: 0.8500100602 | F77: 54.5371186 | G77: 113.4752069 | H77: 2.77729606 | I77: 2.986189657 | J77: 23.36619187 | K77: 12.86432529 | L77: 14.92905228 | M77: 268.6490242 | Q77: 32.70108248 | S77: 0
A78: 2038 - Jan | B78: 39 | C78: 300 | D78: 4.788304858 | E78: 0.849191928 | F78: 56.32103806 | G78: 117.1869683 | H78: 2.769908078 | I78: 3.004794058 | J78: 23.67698827 | K78: 13.20882098 | L78: 14.91265817 | M78: 268.6181047 | Q78: 31.67412247 | S78: 0
A79: 2039 - Jan | B79: 40 | C79: 300 | D79: 4.774723726 | E79: 0.8483221478 | F79: 58.10523037 | G79: 120.9007115 | H79: 2.76213199 | I79: 3.022517786 | J79: 23.9820806 | K79: 13.55142147 | L79: 14.8952218 | M79: 268.5853745 | Q79: 30.70622569 | S79: 0
A80: 2040 - Jan | B80: 41 | C80: 300 | D80: 4.760660378 | E80: 0.8474105784 | F80: 59.88950159 | G80: 124.6160762 | H80: 2.754056187 | I80: 3.039416492 | J80: 24.28171231 | K80: 13.8921593 | L80: 14.87694107 | M80: 268.5511752 | Q80: 29.79272105 | S80: 0
A81: 2041 - Jan | B81: 42 | C81: 300 | D81: 4.746237788 | E81: 0.846465598 | F81: 61.67368344 | G81: 128.3327495 | H81: 2.745755119 | I81: 3.055541655 | J81: 24.5761122 | K81: 14.23106815 | L81: 14.85798378 | M81: 268.5157902 | Q81: 28.92938688 | S81: 0
A82: 2042 - Jan | B82: 43 | C82: 300 | D82: 4.731559115 | E82: 0.8454943196 | F82: 63.4576298 | G82: 132.0504589 | H82: 2.737291297 | I82: 3.070940906 | J82: 24.86549545 | K82: 14.5681824 | L82: 14.83849196 | M82: 268.4794535 | Q82: 28.11240145 | S82: 0
A83: 2043 - Jan | B83: 44 | C83: 300 | D83: 4.716710579 | E83: 0.8445027732 | F83: 65.24121364 | G83: 135.7689662 | H83: 2.728717015 | I83: 3.085658323 | J83: 25.15006451 | K83: 14.90353675 | L83: 14.81858561 | M83: 268.4423564 | Q83: 27.33829946 | S83: 0
A84: 2044 - Jan | B84: 45 | C84: 300 | D84: 4.701763934 | E84: 0.8434960611 | F84: 67.02432432 | G84: 139.4880623 | H84: 2.720075846 | I84: 3.099734718 | J84: 25.43001001 | K84: 15.23716598 | L84: 14.79836586 | M84: 268.4046537 | Q84: 26.60393369 | S84: 0
A85: 2045 - Jan | B85: 46 | C85: 300 | D85: 4.686778603 | E85: 0.8424784897 | F85: 68.80686533 | G85: 143.2075629 | H85: 2.711403923 | I85: 3.113207889 | J85: 25.70551152 | K85: 15.56910463 | L85: 14.77791765 | M85: 268.3664694 | Q85: 25.90644124 | S85: 0
A86: 2046 - Jan | B86: 47 | C86: 300 | D86: 4.671803502 | E86: 0.8414536823 | F86: 70.58875229 | G86: 146.9273046 | H86: 2.702731037 | I86: 3.126112864 | J86: 25.97673836 | K86: 15.89938685 | L86: 14.75731205 | M86: 268.3279012 | Q86: 25.24321376 | S86: 0
A87: 2047 - Jan | B87: 48 | C87: 300 | D87: 4.656878615 | E87: 0.8404246757 | F87: 72.36991122 | G87: 150.6471416 | H87: 2.694081587 | I87: 3.138482116 | J87: 26.24385023 | K87: 16.22804627 | L87: 14.73660821 | M87: 268.2890243 | Q87: 24.61187111 | S87: 0
A88: 2048 - Jan | B88: 49 | C88: 300 | D88: 4.642036335 | E88: 0.8393940027 | F88: 74.15027703 | G88: 154.3669428 | H88: 2.685475387 | I88: 3.150345771 | J88: 26.50699791 | K88: 16.55511583 | L88: 14.71585511 | M88: 268.249895 | Q88: 24.01023811 | S88: 0
A89: 2049 - Jan | B89: 50 | C89: 300 | D89: 4.627302617 | E89: 0.8383637634 | F89: 75.92979224 | G89: 158.0865895 | H89: 2.676928363 | I89: 3.16173179 | J89: 26.76632383 | K89: 16.88062771 | L89: 14.69509294 | M89: 268.2105538 | Q89: 23.43632393 | S89: 0
A90: 2050 - Jan | B90: 51 | C90: 300 | D90: 4.612697961 | E90: 0.8373356857 | F90: 77.70840584 | G90: 161.8059734 | H90: 2.668453145 | I90: 3.172666144 | J90: 27.02196264 | K90: 17.20461325 | L90: 14.67435438 | M90: 268.1710274 | Q90: 22.88830381 | S90: 0
A91: 2051 - Jan | B91: 52 | C91: 300 | D91: 4.598238259 | E91: 0.836311178 | F91: 79.48607232 | G91: 165.5249943 | H91: 2.660059573 | I91: 3.183172968 | J91: 27.27404172 | K91: 17.52710293 | L91: 14.65366569 | M91: 268.1313315 | Q91: 22.36450278 | S91: 0
A92: 2052 - Jan | B92: 53 | C92: 300 | D92: 4.583935504 | E92: 0.8352913747 | F92: 81.26275083 | G92: 169.2435594 | H92: 2.651755133 | I92: 3.193274706 | J92: 27.52268165 | K92: 17.84812627 | L92: 14.6330476 | M92: 268.0914722 | Q92: 21.86338127 | S92: 0
A93: 2053 - Jan | B93: 54 | C93: 300 | D93: 4.569798413 | E93: 0.8342771741 | F93: 83.03840439 | G93: 172.9615811 | H93: 2.643545324 | I93: 3.202992242 | J93: 27.76799668 | K93: 18.16771187 | L93: 14.61251611 | M93: 268.0514474 | Q93: 21.38352219 | S93: 0
A94: 2054 - Jan | B94: 55 | C94: 300 | D94: 4.555832946 | E94: 0.833269273 | F94: 84.81299931 | G94: 176.6789764 | H94: 2.635433979 | I94: 3.212345025 | J94: 28.01009507 | K94: 18.48588734 | L94: 14.5920832 | M94: 268.0112487 | Q94: 20.92361946 | S94: 0
A95: 2055 - Jan | B95: 56 | C95: 300 | D95: 4.54204275 | E95: 0.8322681948 | F95: 86.5865046 | G95: 180.3956658 | H95: 2.627423526 | I95: 3.221351175 | J95: 28.24907956 | K95: 18.80267934 | L95: 14.57175735 | M95: 267.9708619 | Q95: 20.48246772 | S95: 0
A96: 2056 - Jan | B96: 57 | C96: 300 | D96: 4.528429541 | E96: 0.8312743148 | F96: 88.35889146 | G96: 184.1115725 | H96: 2.619515224 | I96: 3.230027588 | J96: 28.48504765 | K96: 19.11811355 | L96: 14.55154413 | M96: 267.9302686 | Q96: 20.05895316 | S96: 0
A97: 2057 - Jan | B97: 58 | C97: 300 | D97: 4.514993426 | E97: 0.8302878814 | F97: 90.13013292 | G97: 187.8266216 | H97: 2.611709356 | I97: 3.238390028 | J97: 28.71809197 | K97: 19.4322147 | L97: 14.53144657 | M97: 267.8894464 | Q97: 19.6520453 | S97: 0
A98: 2058 - Jan | B98: 59 | C98: 300 | D98: 4.50173318 | E98: 0.8293090347 | F98: 91.90020339 | G98: 191.5407396 | H98: 2.60400539 | I98: 3.246453213 | J98: 28.94830054 | K98: 19.74500654 | L98: 14.51146555 | M98: 267.8483698 | Q98: 19.26078953 | S98: 0
A99: 2059 - Jan | B99: 60 | C99: 300 | D99: 4.488646473 | E99: 0.8283378225 | F99: 93.66907842 | G99: 195.2538536 | H99: 2.596402129 | I99: 3.254230894 | J99: 29.17575711 | K99: 20.0565119 | L99: 14.49160014 | M99: 267.8070111 | Q99: 18.88430053 | S99: 0
A100: 2060 - Jan | B100: 61 | C100: 300 | D100: 4.475730077 | E100: 0.8273742139 | F100: 95.43673435 | G100: 198.9658914 | H100: 2.588897822 | I100: 3.261735924 | J100: 29.40054134 | K100: 20.3667527 | L100: 14.47184785 | M100: 267.7653402 | Q100: 18.52175625 | S100: 0
A101: 2061 - Jan | B101: 62 | C101: 300 | D101: 4.462980023 | E101: 0.8264181111 | F101: 97.20314811 | G101: 202.6767805 | H101: 2.581490269 | I101: 3.268980331 | J101: 29.62272912 | K101: 20.67574992 | L101: 14.45220489 | M101: 267.7233259 | Q101: 18.17239251 | S101: 0
A102: 2062 - Jan | B102: 63 | C102: 300 | D102: 4.450391753 | E102: 0.8254693597 | F102: 98.96829699 | G102: 206.3864483 | H102: 2.574176907 | I102: 3.27597537 | J102: 29.84239275 | K102: 20.98352369 | L102: 14.43266636 | M102: 267.6809356 | Q102: 17.83549818 | S102: 0
A103: 2063 - Jan | B103: 64 | C103: 300 | D103: 4.437960232 | E103: 0.8245277573 | F103: 100.7321585 | G103: 210.0948216 | H103: 2.566954883 | I103: 3.282731587 | J103: 30.05960116 | K103: 21.29009326 | L103: 14.41322642 | M103: 267.6381357 | Q103: 17.51041073 | S103: 0
A104: 2064 - Jan | B104: 65 | C104: 300 | D104: 4.425680053 | E104: 0.8235930613 | F104: 102.49471 | G104: 213.8018262 | H104: 2.559821111 | I104: 3.289258865 | J104: 30.2744201 | K104: 21.59547705 | L104: 14.39387847 | M104: 267.5948921 | Q104: 17.19651225 | S104: 0
A105: 2065 - Jan | B105: 66 | C105: 300 | D105: 4.413545521 | E105: 0.8226649948 | F105: 104.255929 | G105: 217.507387 | H105: 2.552772329 | I105: 3.29556647 | J105: 30.48691233 | K105: 21.89969265 | L105: 14.37461523 | M105: 267.5511704 | Q105: 16.89322588 | S105: 0
A106: 2066 - Jan | B106: 67 | C106: 300 | D106: 4.401550411 | E106: 0.8217456917 | F106: 106.0157917 | G106: 221.2114264 | H106: 2.545804847 | I106: 3.301663081 | J106: 30.6971377 | K106: 22.20275675 | L106: 14.35542588 | M106: 267.5076395 | Q106: =1000*(F106-F105)/F106 -> 16.60000604 | S106: =100*(C105-C106)/C105 -> 0
A107: 2067 - Jan | B107: 68 | C107: 300 | D107: 4.38968795 | E107: 0.8208382496 | F107: 107.7742734 | G107: 224.9138632 | H107: 2.538914607 | I107: 3.307556811 | J107: 30.90515329 | K107: 22.50468509 | L107: 14.33629762 | M107: 267.4652123 | Q107: 16.31633958 | S107: 0
A108: 2068 - Jan | B108: 69 | C108: 300 | D108: 4.377952093 | E108: 0.8199366403 | F108: 109.53135 | G108: 228.6146179 | H108: 2.532098374 | I108: 3.313255332 | J108: 31.11101381 | K108: 22.80549291 | L108: 14.31722808 | M108: 267.4221607 | Q108: 16.04176901 | S108: 0
A109: 2069 - Jan | B109: 70 | C109: 300 | D109: 4.366336713 | E109: 0.8190401166 | F109: 111.2869972 | G109: 232.3136098 | H109: 2.525352607 | I109: 3.318765855 | J109: 31.31477162 | K109: 23.10519475 | L109: 14.29820849 | M109: 267.3784505 | Q109: 15.77585194 | S109: 0
A110: 2070 - Jan | B110: 71 | C110: 300 | D110: 4.35483564 | E110: 0.8181482803 | F110: 113.04119 | G110: 236.0107566 | H110: 2.518673733 | I110: 3.324095163 | J110: 31.5164768 | K110: 23.40380444 | L110: 14.27922985 | M110: 267.3340471 | Q110: 15.51817329 | S110: 0
A111: 2071 - Jan | B111: 72 | C111: 300 | D111: 4.343442687 | E111: 0.8172607457 | F111: 114.7939027 | G111: 239.705974 | H111: 2.512058165 | I111: 3.32924964 | J111: 31.71617732 | K111: 23.70133511 | L111: 14.26028293 | M111: 267.2889166 | Q111: 15.26834328 | S111: 0
A112: 2072 - Jan | B112: 73 | C112: 300 | D112: 4.332151679 | E112: 0.8163771183 | F112: 116.545109 | G112: 243.3991766 | H112: 2.505502322 | I112: 3.334235296 | J112: 31.91391911 | K112: 23.99779925 | L112: 14.24135834 | M112: 267.2430248 | Q112: 15.02599557 | S112: 0
A113: 2073 - Jan | B113: 74 | C113: 300 | D113: 4.320956468 | E113: 0.8154969954 | F113: 118.2947817 | G113: 247.0902768 | H113: 2.499002635 | I113: 3.339057795 | J113: 32.10974618 | K113: 24.29320871 | L113: 14.22244657 | M113: 267.1963381 | Q113: 14.79078555 | S113: 0
A114: 2074 - Jan | B114: 75 | C114: 300 | D114: 4.309850957 | E114: 0.8146199669 | F114: 120.042893 | G114: 250.7791855 | H114: 2.49255556 | I114: 3.343722473 | J114: 32.30370071 | K114: 24.58757468 | L114: 14.203538 | M114: 267.1488233 | Q114: 14.56238875 | S114: 0
A115: 2075 - Jan | B115: 76 | C115: 300 | D115: 4.298829105 | E115: 0.8137456173 | F115: 121.789414 | G115: 254.4658117 | H115: 2.486157585 | I115: 3.348234364 | J115: 32.49582317 | K115: 24.88090779 | L115: 14.18462296 | M115: 267.1004475 | Q115: 14.34049946 | S115: 0
A116: 2076 - Jan | B116: 77 | C116: 300 | D116: 4.287884943 | E116: 0.8128735262 | F116: 123.5343151 | G116: 258.1500625 | H116: 2.47980524 | I116: 3.352598215 | J116: 32.68615237 | K116: 25.17321806 | L116: 14.16569173 | M116: 267.0511783 | Q116: 14.12482936 | S116: 0
A117: 2077 - Jan | B117: 78 | C117: 300 | D117: 4.27701258 | E117: 0.8120032693 | F117: 125.2775658 | G117: 261.8318435 | H117: 2.473495096 | I117: 3.356818506 | J117: 32.87472555 | K117: 25.46451494 | L117: 14.14673455 | M117: 267.0009839 | Q117: 13.91510636 | S117: 0
A118: 2078 - Jan | B118: 79 | C118: 300 | D118: 4.26620621 | E118: 0.8111344195 | F118: 127.0191345 | G118: 265.5110581 | H118: 2.467223776 | I118: 3.360899469 | J118: 33.06157849 | K118: 25.75480733 | L118: 14.12774167 | M118: 266.9498329 | Q118: 13.71107347 | S118: 0
A119: 2079 - Jan | B119: 80 | C119: 300 | D119: 4.255460115 | E119: 0.8102665468 | F119: 128.7589887 | G119: 269.1876079 | H119: 2.460987949 | I119: 3.364845099 | J119: 33.24674551 | K119: 26.0441036 | L119: 14.10870332 | M119: 266.8976947 | Q119: 13.51248777 | S119: 0
A120: 2080 - Jan | B120: 81 | C120: 300 | D120: 4.244768672 | E120: 0.8093992192 | F120: 130.4970951 | G120: 272.8613929 | H120: 2.454784343 | I120: 3.368659171 | J120: 33.43025961 | K120: 26.33241158 | L120: 14.08960977 | M120: 266.8445393 | Q120: 13.3191195 | S120: 0
A121: 2081 - Jan | B121: 82 | C121: 300 | D121: 4.234126351 | E121: 0.8085320032 | F121: 132.2334193 | G121: 276.5323109 | H121: 2.448609736 | I121: 3.372345255 | J121: 33.61215249 | K121: 26.61973861 | L121: 14.07045129 | M121: 266.7903373 | Q121: 13.13075115 | S121: 0
A122: 2082 - Jan | B122: 83 | C122: 300 | D122: 4.22352772 | E122: 0.8076644636 | F122: 133.9679257 | G122: 280.200258 | H122: 2.442460965 | I122: 3.375906723 | J122: 33.79245464 | K122: 26.90609153 | L122: 14.0512182 | M122: 266.7350604 | Q122: 12.9471767 | S122: 0
A123: 2083 - Jan | B123: 84 | C123: 300 | D123: 4.212967443 | E123: 0.8067961638 | F123: 135.7005779 | G123: 283.8651285 | H123: 2.436334921 | I123: 3.379346768 | J123: 33.97119535 | K123: 27.1914767 | L123: 14.03190082 | M123: 266.6786807 | Q123: 12.76820086 | S123: 0
A124: 2084 - Jan | B124: 85 | C124: 300 | D124: 4.202440281 | E124: 0.8059266663 | F124: 137.4313385 | G124: 287.5268147 | H124: 2.430228553 | I124: 3.382668408 | J124: 34.14840281 | K124: 27.47590003 | L124: 14.01248956 | M124: 266.6211713 | Q124: 12.59363839 | S124: 0
A125: 2085 - Jan | B125: 86 | C125: 300 | D125: 4.191941093 | E125: 0.8050555323 | F125: 139.1601689 | G125: 291.1852071 | H125: 2.424138864 | I125: 3.385874501 | J125: 34.32410413 | K125: 27.75936695 | L125: 13.99297483 | M125: 266.5625064 | Q125: 12.42331348 | S125: 0
A126: 2086 - Jan | B126: 87 | C126: 300 | D126: 4.181464833 | E126: 0.8041823219 | F126: 140.8870295 | G126: 294.8401944 | H126: 2.418062914 | I126: 3.388967751 | J126: 34.49832541 | K126: 28.04188248 | L126: 13.97334712 | M126: 266.5026608 | Q126: 12.25705913 | S126: 0
A127: 2087 - Jan | B127: 88 | C127: 300 | D127: 4.171006551 | E127: 0.8033065944 | F127: 142.6118798 | G127: 298.4916633 | H127: 2.411997819 | I127: 3.391950719 | J127: 34.67109174 | K127: 28.32345118 | L127: 13.95359696 | M127: 266.4416105 | Q127: 12.09471667 | S127: 0
A128: 2088 - Jan | B128: 89 | C128: 300 | D128: 4.160561389 | E128: 0.8024279075 | F128: 144.334678 | G128: 302.1394988 | H128: 2.405940749 | I128: 3.394825829 | J128: 34.84242732 | K128: 28.60407722 | L128: 13.93371494 | M128: 266.3793326 | Q128: 11.93613519 | S128: 0
A129: 2089 - Jan | B129: 90 | C129: 300 | D129: 4.150124584 | E129: 0.801545818 | F129: 146.0553815 | G129: 305.783584 | H129: 2.399888926 | I129: 3.397595378 | J129: 35.01235542 | K129: 28.88376435 | L129: 13.91369168 | M129: 266.3158053 | Q129: 11.78117112 | S129: 0
A130: 2090 - Jan | B130: 91 | C130: 300 | D130: 4.139691463 | E130: 0.8006598812 | F130: 147.7739463 | G130: 309.4238002 | H130: 2.393839629 | I130: 3.400261541 | J130: 35.18089846 | K130: 29.16251593 | L130: 13.89351789 | M130: 266.2510078 | Q130: 11.62968777 | S130: 0
A131: 2091 - Jan | B131: 92 | C131: 300 | D131: 4.129257443 | E131: 0.7997696511 | F131: 149.4903278 | G131: 313.060027 | H131: 2.387790185 | I131: 3.402826381 | J131: 35.34807804 | K131: 29.44033493 | L131: 13.87318432 | M131: 266.1849208 | Q131: 11.48155494 | S131: 0
A132: 2092 - Jan | B132: 93 | C132: 300 | D132: 4.118818029 | E132: 0.7988746799 | F132: 151.2044798 | G132: 316.6921421 | H132: 2.381737976 | I132: 3.40529185 | J132: 35.51391496 | K132: 29.71722394 | L132: 13.85268179 | M132: 266.117526 | Q132: 11.33664854 | S132: 0
A133: 2093 - Jan | B133: 94 | C133: 300 | D133: 4.108368814 | E133: 0.7979745182 | F133: 152.9163555 | G133: 320.3200212 | H133: 2.375680432 | I133: 3.4076598 | J133: 35.67842928 | K133: 29.99318521 | L133: 13.83200117 | M133: 266.0488067 | Q133: 11.19485025 | S133: 0
A134: 2094 - Jan | B134: 95 | C134: 300 | D134: 4.097905475 | E134: 0.7970687148 | F134: 154.6259068 | G134: 323.9435387 | H134: 2.369615033 | I134: 3.409931986 | J134: 35.84164032 | K134: 30.26822061 | L134: 13.8111334 | M134: 265.9787477 | Q134: 11.05604717 | S134: 0
A135: 2095 - Jan | B135: 96 | C135: 300 | D135: 4.087423776 | E135: 0.7961568163 | F135: 156.3330847 | G135: 327.5625668 | H135: 2.363539311 | I135: 3.41211007 | J135: 36.00356671 | K135: 30.54233167 | L135: 13.79006948 | M135: 265.907335 | Q135: 10.92013156 | S135: 0
A136: 2096 - Jan | B136: 97 | C136: 300 | D136: 4.076919561 | E136: 0.795238367 | F136: 158.0378389 | G136: 331.1769762 | H136: 2.357450842 | I136: 3.41419563 | J136: 36.1642264 | K136: 30.81551959 | L136: 13.76880048 | M136: 265.8345565 | Q136: 10.78700052 | S136: 0
A137: 2097 - Jan | B137: 98 | C137: 300 | D137: 4.06638876 | E137: 0.7943129091 | F137: 159.7401184 | G137: 334.7866358 | H137: 2.351347254 | I137: 3.416190161 | J137: 36.3236367 | K137: 31.08778522 | L137: 13.74731753 | M137: 265.7604016 | Q137: 10.65655572 | S137: 0
A138: 2098 - Jan | B138: 99 | C138: 300 | D138: 4.055827381 | E138: 0.793379982 | F138: 161.4398709 | G138: 338.3914128 | H138: 2.345226219 | I138: 3.418095079 | J138: 36.48181431 | K138: 31.35912911 | L138: 13.72561183 | M138: 265.6848616 | Q138: 10.52870319 | S138: 0
A139: 2099 - Jan | B139: 100 | C139: 300 | D139: 4.045231514 | E139: 0.7924391223 | F139: 163.1370431 | G139: 341.9911727 | H139: 2.339085457 | I139: 3.419911727 | J139: 36.63877533 | K139: 31.62955149 | L139: 13.70367465 | M139: 265.6079296 | Q139: 10.40335308 | S139: 0
O152: =M152/30 -> 0
O153: =M153/30 -> 0
N165: =M165/30 -> 0
P190: =M190/30 -> 0
